Effective Date,Department,Supplier Name,Payment Date,Amount**,Purpose of Spend,Merchant Category,Card Transaction
Statement 18/05/2016,Adults and Communities,Amazon UK Marketplace,24/05/2016,5.69,Books - General,Book Stores,GPC
Statement 18/05/2016,Adults and Communities,Amazon UK Marketplace,16/06/2016,4.35,Books - General,Book Stores,GPC
Statement 18/05/2016,Adults and Communities,Amazon UK Marketplace,31/05/2016,4.47,Client/Volunteers - General,Miscellaneous and Specialty Retail Stores,GPC
Statement 18/05/2016,Adults and Communities,Amazon UK Marketplace,19/05/2016,65.99,General Equipment - General,Miscellaneous and Specialty Retail Stores,GPC
Statement 18/05/2016,Adults and Communities,Amazon UK Marketplace,19/05/2016,31,Materials - General,Miscellaneous and Specialty Retail Stores,GPC
Statement 18/05/2016,Adults and Communities,Amazon UK Marketplace,20/05/2016,7.4,Materials - General,Miscellaneous and Specialty Retail Stores,GPC
Statement 18/05/2016,Adults and Communities,Amazon UK Marketplace,20/05/2016,9.98,Materials - General,Miscellaneous and Specialty Retail Stores,GPC
Statement 18/05/2016,Adults and Communities,Amazon UK Marketplace,26/05/2016,1.99,Materials - General,Miscellaneous and Specialty Retail Stores,GPC
Statement 18/05/2016,Adults and Communities,Amazon UK Marketplace,02/06/2016,12.63,Materials - General,Miscellaneous and Specialty Retail Stores,GPC
Statement 18/05/2016,Adults and Communities,Amazon UK Marketplace,02/06/2016,11.65,Materials - General,Miscellaneous and Specialty Retail Stores,GPC
Statement 18/05/2016,Adults and Communities,Amazon UK Marketplace,07/06/2016,4.99,Materials - General,Miscellaneous and Specialty Retail Stores,GPC
Statement 18/05/2016,Adults and Communities,Amazon UK Marketplace,15/06/2016,32.78,Materials - General,Miscellaneous and Specialty Retail Stores,GPC
Statement 18/05/2016,Adults and Communities,Amazon UK Marketplace,07/06/2016,94.6,Operational Equipment - DDA,Book Stores,GPC
Statement 18/05/2016,Adults and Communities,Amazon UK Marketplace,09/06/2016,4.57,Other Equipment & Materials - General,Miscellaneous and Specialty Retail Stores,GPC
Statement 18/05/2016,Adults and Communities,Amazon UK Marketplace,09/06/2016,4.79,Other Equipment & Materials - General,Miscellaneous and Specialty Retail Stores,GPC
Statement 18/05/2016,Adults and Communities,Amazon UK Marketplace,09/06/2016,11.18,Other Equipment & Materials - General,Miscellaneous and Specialty Retail Stores,GPC
Statement 18/05/2016,Adults and Communities,Amazon UK Marketplace,10/06/2016,3.48,Other Equipment & Materials - General,Miscellaneous and Specialty Retail Stores,GPC
Statement 18/05/2016,Adults and Communities,Amazon UK Marketplace,10/06/2016,5.79,Other Equipment & Materials - General,Miscellaneous and Specialty Retail Stores,GPC
Statement 18/05/2016,Adults and Communities,Amazon UK Marketplace,15/06/2016,10.82,Other Equipment & Materials - General,Miscellaneous and Specialty Retail Stores,GPC
Statement 18/05/2016,Adults and Communities,Amazon UK Marketplace,16/06/2016,8.68,Other Equipment & Materials - General,Book Stores,GPC
Statement 18/05/2016,Adults and Communities,Amazon UK Marketplace,09/06/2016,54.13,Other Expenditure - General,Miscellaneous and Specialty Retail Stores,GPC
Statement 18/05/2016,Adults and Communities,Amazon UK Marketplace,18/05/2016,9.94,Personal Needs of Clients - General,Book Stores,GPC
Statement 18/05/2016,Adults and Communities,Amazon UK Marketplace,31/05/2016,22.35,Protective Clothing & Uniforms - General,Miscellaneous and Specialty Retail Stores,GPC
Statement 18/05/2016,Adults and Communities,Amazon UK Marketplace,22/05/2016,221.59,Revenue Financing of Capital - General,Book Stores,GPC
Statement 18/05/2016,Adults and Communities,Amazon UK Marketplace,22/05/2016,15.9,Revenue Financing of Capital - General,Miscellaneous and Specialty Retail Stores,GPC
Statement 18/05/2016,Adults and Communities,Amazon UK Marketplace,25/05/2016,7.99,Revenue Financing of Capital - General,Book Stores,GPC
Statement 18/05/2016,Adults and Communities,Amazon UK Marketplace,20/05/2016,8.81,Stationery - General,Book Stores,GPC
Statement 18/05/2016,Adults and Communities,Amazon UK Marketplace,26/05/2016,26.64,Stationery - General,Miscellaneous and Specialty Retail Stores,GPC
Statement 18/05/2016,Adults and Communities,Amazon UK Marketplace,16/06/2016,4.99,Stationery - General,Book Stores,GPC
Statement 18/05/2016,Adults and Communities,Amazon UK Marketplace,16/06/2016,97.24,Stationery - General,Miscellaneous and Specialty Retail Stores,GPC
Statement 18/05/2016,Adults and Communities,Amazon UK Marketplace,14/06/2016,7.63,Tuition Fees - Tuition Fees-Class Programme,Miscellaneous and Specialty Retail Stores,GPC
Statement 18/05/2016,Adults and Communities,Amazon UK Retail,25/05/2016,9.99,Materials - General,Direct Marketers - Other,GPC
Statement 18/05/2016,Adults and Communities,Amazon UK Retail,02/06/2016,21.75,Other Equipment & Materials - General,Direct Marketers - Other,GPC
Statement 18/05/2016,Adults and Communities,Amazon UK Retail,12/06/2016,12.65,Other Equipment & Materials - General,Direct Marketers - Other,GPC
Statement 18/05/2016,Adults and Communities,Amazon UK Retail,07/06/2016,28.7,Other Expenditure - General,Direct Marketers - Other,GPC
Statement 18/05/2016,Adults and Communities,Amazon UK Retail,07/06/2016,21.97,Other Expenditure - General,Direct Marketers - Other,GPC
Statement 18/05/2016,Adults and Communities,Amazon UK Retail,16/06/2016,77.16,Other Expenditure - General,Direct Marketers - Other,GPC
Statement 18/05/2016,Adults and Communities,Amazon UK Retail,08/06/2016,19.96,Printing - General,Direct Marketers - Other,GPC
Statement 18/05/2016,Adults and Communities,AMAZON UK RETAIL AMAZON.C,25/05/2016,18.32,Materials - General,Miscellaneous and Specialty Retail Stores,GPC
Statement 18/05/2016,Adults and Communities,ARGOS LTD,16/06/2016,89.97,Furniture - General,Discount Stores,GPC
Statement 18/05/2016,Adults and Communities,ARGOS LTD,15/06/2016,27.19,General Equipment - General,Discount Stores,GPC
Statement 18/05/2016,Adults and Communities,ARGOS LTD,24/05/2016,71.98,Materials - General,Discount Stores,GPC
Statement 18/05/2016,Adults and Communities,ASDA STORES 4477,23/05/2016,2.9,Other Equipment & Materials - General,"Grocery Stores, Supermarkets",GPC
Statement 18/05/2016,Adults and Communities,ASDA STORES 4477,19/05/2016,4.5,Other Expenditure - General,"Grocery Stores, Supermarkets",GPC
Statement 18/05/2016,Adults and Communities,ASDA SUPERSTORE,19/05/2016,3.07,Cleaning Materials - General,"Grocery Stores, Supermarkets",GPC
Statement 18/05/2016,Adults and Communities,ASDA SUPERSTORE,19/05/2016,0.61,Client/Volunteers - General,"Grocery Stores, Supermarkets",GPC
Statement 18/05/2016,Adults and Communities,ASDA SUPERSTORE,25/05/2016,1.17,Client/Volunteers - General,"Grocery Stores, Supermarkets",GPC
Statement 18/05/2016,Adults and Communities,ASDA SUPERSTORE,01/06/2016,3.33,Client/Volunteers - General,"Grocery Stores, Supermarkets",GPC
Statement 18/05/2016,Adults and Communities,ASDA SUPERSTORE,01/06/2016,16.67,General Equipment - General,"Grocery Stores, Supermarkets",GPC
Statement 18/05/2016,Adults and Communities,ASDA SUPERSTORE,03/06/2016,-20,Materials - General,"Grocery Stores, Supermarkets",GPC
Statement 18/05/2016,Adults and Communities,ASDA SUPERSTORE,25/05/2016,5.83,Provisions - General,"Grocery Stores, Supermarkets",GPC
Statement 18/05/2016,Adults and Communities,ASDA SUPERSTORE,01/06/2016,45.07,Provisions - General,"Grocery Stores, Supermarkets",GPC
Statement 18/05/2016,Adults and Communities,B & Q 1012,03/06/2016,63.82,R & M of Buildings - General,"Building Materials, Lumber Stores",GPC
Statement 18/05/2016,Adults and Communities,B & Q 1043,25/05/2016,8.33,Aids & Adaptations - Minor Adaptations,"Building Materials, Lumber Stores",GPC
Statement 18/05/2016,Adults and Communities,B & Q 1043,08/06/2016,9.07,Aids & Adaptations - Minor Adaptations,"Building Materials, Lumber Stores",GPC
Statement 18/05/2016,Adults and Communities,B & Q 1043,06/06/2016,60,Materials - General,"Building Materials, Lumber Stores",GPC
Statement 18/05/2016,Adults and Communities,B & Q 1052,14/06/2016,83.12,R & M of Buildings - General,"Building Materials, Lumber Stores",GPC
Statement 18/05/2016,Adults and Communities,B AND Q 1299,18/05/2016,21.21,Aids & Adaptations - Minor Adaptations,"Building Materials, Lumber Stores",GPC
Statement 18/05/2016,Adults and Communities,B&M RETAIL LTD,11/06/2016,9.06,Provisions - General,Discount Stores,GPC
Statement 18/05/2016,Adults and Communities,BC.BASECAMP 2997305,01/06/2016,13.87,IT Equipment - Licences,Membership Organizations-Not Elsewhere Classified,GPC
Statement 18/05/2016,Adults and Communities,BRANTANO FOOTWEAR,18/05/2016,43.37,Protective Clothing & Uniforms - General,Shoe Stores,GPC
Statement 18/05/2016,Adults and Communities,BT BILL PAYMENT 1,08/06/2016,85.89,Telephones - General,Telecommunication Equipment Including Telephone Sa,GPC
Statement 18/05/2016,Adults and Communities,CENTRAL ENG COOP,22/05/2016,92.4,Postal Services - General,Department Stores,GPC
Statement 18/05/2016,Adults and Communities,CENTRAL ENG COOP,22/05/2016,39.6,Postal Services - General,Department Stores,GPC
Statement 18/05/2016,Adults and Communities,CENTRAL ENG COOP,17/05/2016,46.02,Provisions - General,Department Stores,GPC
Statement 18/05/2016,Adults and Communities,CENTRAL ENG COOP,18/05/2016,10.5,Provisions - General,Department Stores,GPC
Statement 18/05/2016,Adults and Communities,CENTRAL ENG COOP,19/05/2016,24.46,Provisions - General,Department Stores,GPC
Statement 18/05/2016,Adults and Communities,CENTRAL ENG COOP,22/05/2016,9.93,Provisions - General,Department Stores,GPC
Statement 18/05/2016,Adults and Communities,CENTRAL ENG COOP,29/05/2016,45.51,Provisions - General,Department Stores,GPC
Statement 18/05/2016,Adults and Communities,CENTRAL ENG COOP,30/05/2016,30.15,Provisions - General,Department Stores,GPC
Statement 18/05/2016,Adults and Communities,CENTRAL ENG COOP,01/06/2016,53.77,Provisions - General,Department Stores,GPC
Statement 18/05/2016,Adults and Communities,CENTRAL ENG COOP,06/06/2016,24.63,Provisions - General,Department Stores,GPC
Statement 18/05/2016,Adults and Communities,CENTRAL ENG COOP,10/06/2016,48.98,Provisions - General,Department Stores,GPC
Statement 18/05/2016,Adults and Communities,CENTRAL ENG COOP,10/06/2016,11.76,Provisions - General,Department Stores,GPC
Statement 18/05/2016,Adults and Communities,CENTRAL ENG COOP,10/06/2016,37.45,Provisions - General,Department Stores,GPC
Statement 18/05/2016,Adults and Communities,CENTRAL ENG COOP,11/06/2016,7.3,Provisions - General,Department Stores,GPC
Statement 18/05/2016,Adults and Communities,CENTRAL ENG COOP,15/06/2016,7.18,Provisions - General,Department Stores,GPC
Statement 18/05/2016,Adults and Communities,CHARNWOOD BOROUGH COUNCI,17/05/2016,6,Casual/Essential - General,Automobile Parking Lots and Garages,GPC
Statement 18/05/2016,Adults and Communities,CHARNWOOD BOROUGH COUNCI,15/06/2016,6,Casual/Essential - General,Automobile Parking Lots and Garages,GPC
Statement 18/05/2016,Adults and Communities,CHARNWOOD BOROUGH COUNCI,19/05/2016,1.6,Other Equipment & Materials - General,Automobile Parking Lots and Garages,GPC
Statement 18/05/2016,Adults and Communities,CITY ELECTRICAL FA,17/05/2016,27.55,R & M of Buildings - General,"Building Materials, Lumber Stores",GPC
Statement 18/05/2016,Adults and Communities,COSTA COFFEE,24/05/2016,4.4,Other Expenditure - General,Fast-Food Restaurants (Quick Payment Service Pilot,GPC
Statement 18/05/2016,Adults and Communities,CREATIVEVENTS LTD,18/05/2016,7,Conference - General,"Miscellaneous Food Stores-Convenience Stores, Mark",GPC
Statement 18/05/2016,Adults and Communities,CREATIVEVENTS LTD,19/05/2016,5.5,Conference - General,"Miscellaneous Food Stores-Convenience Stores, Mark",GPC
Statement 18/05/2016,Adults and Communities,CREATIVEVENTS LTD,19/05/2016,7,Conference - General,"Miscellaneous Food Stores-Convenience Stores, Mark",GPC
Statement 18/05/2016,Adults and Communities,CREATIVEVENTS LTD,19/05/2016,21.05,Conference - General,"Miscellaneous Food Stores-Convenience Stores, Mark",GPC
Statement 18/05/2016,Adults and Communities,CURRYS,17/05/2016,49.99,Stationery - General,"RADIO, TELEVISION, AND STEREO STORES (ELECTRONIC STORES)",GPC
Statement 18/05/2016,Adults and Communities,CURRYS ONLINE,02/06/2016,29.17,Client/Volunteers - General,"RADIO, TELEVISION, AND STEREO STORES (ELECTRONIC STORES)",GPC
Statement 18/05/2016,Adults and Communities,CURRYS ONLINE,02/06/2016,145.82,General Equipment - General,"RADIO, TELEVISION, AND STEREO STORES (ELECTRONIC STORES)",GPC
Statement 18/05/2016,Adults and Communities,CURRYS ONLINE,08/06/2016,224.99,General Equipment - General,"RADIO, TELEVISION, AND STEREO STORES (ELECTRONIC STORES)",GPC
Statement 18/05/2016,Adults and Communities,CURRYS ONLINE,10/06/2016,239.98,Materials - General,"RADIO, TELEVISION, AND STEREO STORES (ELECTRONIC STORES)",GPC
Statement 18/05/2016,Adults and Communities,DFS FIXINGS,16/06/2016,77.4,Other Equipment & Materials - General,Hardware Equipment and Supplies,GPC
Statement 18/05/2016,Adults and Communities,DUNELM (SOFT FURNISHIN,09/06/2016,15.99,Furniture - General,"Drapery, Window Coverings, and Upholstery Stores",GPC
Statement 18/05/2016,Adults and Communities,DUNELM (SOFT FURNISHIN,11/06/2016,16.04,Furniture - General,"Drapery, Window Coverings, and Upholstery Stores",GPC
Statement 18/05/2016,Adults and Communities,DUNELM ONLINE ORDER,23/05/2016,16.3,Client/Volunteers - General,"Drapery, Window Coverings, and Upholstery Stores",GPC
Statement 18/05/2016,Adults and Communities,DUNELM ONLINE ORDER,23/05/2016,81.52,Provisions - General,"Drapery, Window Coverings, and Upholstery Stores",GPC
Statement 18/05/2016,Adults and Communities,DVLA VEHICLE TAX,25/05/2016,232.5,Other Transport Costs - General,Government Services-Not Elsewhere Classified,GPC
Statement 18/05/2016,Adults and Communities,EAST MIDLANDS TRAI,13/06/2016,59.5,Casual/Essential - General,Passenger Railways,GPC
Statement 18/05/2016,Adults and Communities,EASTMIDLANDSTRAINS,18/05/2016,57,Casual/Essential - General,Passenger Railways,GPC
Statement 18/05/2016,Adults and Communities,EASTMIDLANDSTRAINS,25/05/2016,109.6,Casual/Essential - General,Passenger Railways,GPC
Statement 18/05/2016,Adults and Communities,EASTMIDLANDSTRAINS,13/06/2016,19,Casual/Essential - General,Passenger Railways,GPC
Statement 18/05/2016,Adults and Communities,EASTMIDLANDSTRAINS,24/05/2016,88.6,Public Transport -  Staff - General,Passenger Railways,GPC
Statement 18/05/2016,Adults and Communities,FAST KEY SERVICES LIMI,02/06/2016,6.76,General Equipment - General,Business Services-Not Elsewhere Classified,GPC
Statement 18/05/2016,Adults and Communities,FOREIGN EXCHANGE FEE,02/06/2016,0.38,IT Equipment - Licences,Misc-Unknown,GPC
Statement 18/05/2016,Adults and Communities,FOREIGN EXCHANGE FEE,24/05/2016,0.48,Schools Agency staff - Support Staff,Misc-Unknown,GPC
Statement 18/05/2016,Adults and Communities,GILDINGS LTD,08/06/2016,118,Schools Agency staff - Teaching Staff,Professional Services-Not Elsewhere Classified,GPC
Statement 18/05/2016,Adults and Communities,GILDINGS LTD,08/06/2016,295,Schools Agency staff - Teaching Staff,Professional Services-Not Elsewhere Classified,GPC
Statement 18/05/2016,Adults and Communities,HANDSET SOLUTIONS,26/05/2016,368.34,General Equipment - General,Telecommunication Equipment Including Telephone Sa,GPC
Statement 18/05/2016,Adults and Communities,HANDSET SOLUTIONS,13/06/2016,110.7,General Equipment - General,Telecommunication Equipment Including Telephone Sa,GPC
Statement 18/05/2016,Adults and Communities,HEALTHCARE INFECTI,16/06/2016,60,Subscriptions - General,Membership Organizations-Not Elsewhere Classified,GPC
Statement 18/05/2016,Adults and Communities,HOME BARGAINS COALVILL,15/06/2016,7.47,Other Equipment & Materials - General,Hardware Stores,GPC
Statement 18/05/2016,Adults and Communities,HOME BARGAINS COALVILL,08/06/2016,3.98,Provisions - General,Hardware Stores,GPC
Statement 18/05/2016,Adults and Communities,HOMEBASE LTD,23/05/2016,31.63,General Equipment - General,"Building Materials, Lumber Stores",GPC
Statement 18/05/2016,Adults and Communities,HOMEBASE LTD,24/05/2016,21.34,General Equipment - General,"Building Materials, Lumber Stores",GPC
Statement 18/05/2016,Adults and Communities,HTTP://WWW.DERBYSHIRE.,26/05/2016,26.5,Other Expenditure - General,Government Services-Not Elsewhere Classified,GPC
Statement 18/05/2016,Adults and Communities,ICELAND,01/06/2016,38.96,Provisions - General,"Grocery Stores, Supermarkets",GPC
Statement 18/05/2016,Adults and Communities,ICELAND,10/06/2016,47.25,Provisions - General,"Grocery Stores, Supermarkets",GPC
Statement 18/05/2016,Adults and Communities,ICELAND,10/06/2016,5.5,Provisions - General,"Grocery Stores, Supermarkets",GPC
Statement 18/05/2016,Adults and Communities,INDIGO PARK SOLUTI,13/06/2016,3.66,Casual/Essential - General,Automobile Parking Lots and Garages,GPC
Statement 18/05/2016,Adults and Communities,IPS DURHAM CONTACT CTR,08/06/2016,92,Other Expenditure - General,Government Services-Not Elsewhere Classified,GPC
Statement 18/05/2016,Adults and Communities,ITUNES.COM/BILL,07/06/2016,1.75,Materials - General,Record Shops,GPC
Statement 18/05/2016,Adults and Communities,JOHNSTONES DECORATING,17/05/2016,60,Aids & Adaptations - Minor Adaptations,"Glass, Paint, Wallpaper Stores",GPC
Statement 18/05/2016,Adults and Communities,JOHNSTONES DECORATING,07/06/2016,60,Aids & Adaptations - Minor Adaptations,"Glass, Paint, Wallpaper Stores",GPC
Statement 18/05/2016,Adults and Communities,LEIC CITY COUNCIL,17/05/2016,13,Other Expenditure - General,Government Services-Not Elsewhere Classified,GPC
Statement 18/05/2016,Adults and Communities,LEIC CITY COUNCIL,20/05/2016,13,Other Expenditure - General,Government Services-Not Elsewhere Classified,GPC
Statement 18/05/2016,Adults and Communities,LEIC CITY COUNCIL,26/05/2016,23,Other Expenditure - General,Government Services-Not Elsewhere Classified,GPC
Statement 18/05/2016,Adults and Communities,LEIC CITY COUNCIL,27/05/2016,-23,Other Expenditure - General,Government Services-Not Elsewhere Classified,GPC
Statement 18/05/2016,Adults and Communities,LEICESTER THURMAS,09/06/2016,25.04,Aids & Adaptations - Minor Adaptations,"Building Materials, Lumber Stores",GPC
Statement 18/05/2016,Adults and Communities,LEICESTER THURMAS,13/06/2016,24.15,Aids & Adaptations - Minor Adaptations,"Building Materials, Lumber Stores",GPC
Statement 18/05/2016,Adults and Communities,LEICESTER THURMAS,15/06/2016,24.34,Aids & Adaptations - Minor Adaptations,"Building Materials, Lumber Stores",GPC
Statement 18/05/2016,Adults and Communities,LEICESTERSHIRE C COUNC,23/05/2016,11,Other Expenditure - General,Government Services-Not Elsewhere Classified,GPC
Statement 18/05/2016,Adults and Communities,LINKEDIN-275 1413174,18/05/2016,227.94,Recruitment Advertising - General,Continuity/Subscription Merchants,GPC
Statement 18/05/2016,Adults and Communities,LIONHEARTRE,02/06/2016,54,Materials - General,"Artist Supply Stores, Craft Shops",GPC
Statement 18/05/2016,Adults and Communities,LUL TICKET MACHINE,13/06/2016,4.9,Casual/Essential - General,Passenger Railways,GPC
Statement 18/05/2016,Adults and Communities,MCDONALDS,25/05/2016,4.67,Other Expenditure - General,"Eating Places, Restaurants",GPC
Statement 18/05/2016,Adults and Communities,MERCURY NEWS 63917/453,01/06/2016,102.72,Newspapers & Periodicals - General,"Grocery Stores, Supermarkets",GPC
Statement 18/05/2016,Adults and Communities,MERCURY NEWS 63933,15/06/2016,53.9,Newspapers & Periodicals - General,"Grocery Stores, Supermarkets",GPC
Statement 18/05/2016,Adults and Communities,NATIONAL TRUST,13/06/2016,20.6,Other Expenditure - General,Charitable and Social Service Organizations,GPC
Statement 18/05/2016,Adults and Communities,NOCHEX-FAZE 3,10/06/2016,55.93,Materials - General,"Gift, Card, Novelty, and Souvenir Shops",GPC
Statement 18/05/2016,Adults and Communities,NTTNGHM CSTLE CAFE,15/06/2016,210,Training Expenses - General,Government Services-Not Elsewhere Classified,GPC
Statement 18/05/2016,Adults and Communities,OCADO LTD.,30/05/2016,0.98,Client/Volunteers - General,"Miscellaneous Food Stores-Convenience Stores, Mark",GPC
Statement 18/05/2016,Adults and Communities,OCADO LTD.,04/06/2016,2.48,Client/Volunteers - General,"Miscellaneous Food Stores-Convenience Stores, Mark",GPC
Statement 18/05/2016,Adults and Communities,OCADO LTD.,06/06/2016,0.63,Client/Volunteers - General,"Miscellaneous Food Stores-Convenience Stores, Mark",GPC
Statement 18/05/2016,Adults and Communities,OCADO LTD.,30/05/2016,120.57,Provisions - General,"Miscellaneous Food Stores-Convenience Stores, Mark",GPC
Statement 18/05/2016,Adults and Communities,OCADO LTD.,04/06/2016,126.74,Provisions - General,"Miscellaneous Food Stores-Convenience Stores, Mark",GPC
Statement 18/05/2016,Adults and Communities,OCADO LTD.,06/06/2016,79.45,Provisions - General,"Miscellaneous Food Stores-Convenience Stores, Mark",GPC
Statement 18/05/2016,Adults and Communities,OCADO RETAIL LIMIT,20/05/2016,3.52,Client/Volunteers - General,"Miscellaneous Food Stores-Convenience Stores, Mark",GPC
Statement 18/05/2016,Adults and Communities,OCADO RETAIL LIMIT,23/05/2016,0.75,Client/Volunteers - General,"Miscellaneous Food Stores-Convenience Stores, Mark",GPC
Statement 18/05/2016,Adults and Communities,OCADO RETAIL LIMIT,28/05/2016,3.15,Client/Volunteers - General,"Miscellaneous Food Stores-Convenience Stores, Mark",GPC
Statement 18/05/2016,Adults and Communities,OCADO RETAIL LIMIT,15/06/2016,1.92,Client/Volunteers - General,"Miscellaneous Food Stores-Convenience Stores, Mark",GPC
Statement 18/05/2016,Adults and Communities,OCADO RETAIL LIMIT,15/06/2016,3.41,Client/Volunteers - General,"Miscellaneous Food Stores-Convenience Stores, Mark",GPC
Statement 18/05/2016,Adults and Communities,OCADO RETAIL LIMIT,20/05/2016,108.05,Provisions - General,"Miscellaneous Food Stores-Convenience Stores, Mark",GPC
Statement 18/05/2016,Adults and Communities,OCADO RETAIL LIMIT,23/05/2016,124.67,Provisions - General,"Miscellaneous Food Stores-Convenience Stores, Mark",GPC
Statement 18/05/2016,Adults and Communities,OCADO RETAIL LIMIT,28/05/2016,112.89,Provisions - General,"Miscellaneous Food Stores-Convenience Stores, Mark",GPC
Statement 18/05/2016,Adults and Communities,OCADO RETAIL LIMIT,15/06/2016,105.19,Provisions - General,"Miscellaneous Food Stores-Convenience Stores, Mark",GPC
Statement 18/05/2016,Adults and Communities,OCADO RETAIL LIMIT,15/06/2016,101.25,Provisions - General,"Miscellaneous Food Stores-Convenience Stores, Mark",GPC
Statement 18/05/2016,Adults and Communities,ORCHARD KENNELS,27/05/2016,560,Materials - General,Pet Shops-Pet Food and Supplies,GPC
Statement 18/05/2016,Adults and Communities,OSBORNES OADBY,25/05/2016,42.5,General Equipment - General,"Stationery, Office, and School Supply Stores",GPC
Statement 18/05/2016,Adults and Communities,PAYPAL  DECLANGIBBS,20/05/2016,881.56,IT Equipment - Maintenance,Computer and Data Processing Services,GPC
Statement 18/05/2016,Adults and Communities,PAYPAL  EDISCOUNT20,02/06/2016,1.85,Operational Equipment - General,Camera and Photographic Supply Stores,GPC
Statement 18/05/2016,Adults and Communities,PAYPAL  EUROFFICELT,18/05/2016,124.72,Stationery - General,"Stationery, Office, and School Supply Stores",GPC
Statement 18/05/2016,Adults and Communities,PAYPAL  FANCY DRESS,16/06/2016,10.4,Other Equipment & Materials - General,Miscellaneous Apparel and Accessory Stores,GPC
Statement 18/05/2016,Adults and Communities,PAYPAL  PCROSSMAN,19/05/2016,206,Materials - General,Miscellaneous Apparel and Accessory Stores,GPC
Statement 18/05/2016,Adults and Communities,PAYPAL  PRODBUY LTD,09/06/2016,14.99,General Equipment - General,Antique Shops,GPC
Statement 18/05/2016,Adults and Communities,PAYPAL  PROPS4SHOWS,26/05/2016,83.75,Other Equipment & Materials - General,Chemicals and Allied Products Not Elsewhere Classi,GPC
Statement 18/05/2016,Adults and Communities,PAYPAL  SHENZHENUNI,26/05/2016,18.49,General Equipment - General,"RADIO, TELEVISION, AND STEREO STORES (ELECTRONIC STORES)",GPC
Statement 18/05/2016,Adults and Communities,PAYPAL  SHERRYSHAO2,16/06/2016,2.98,Other Equipment & Materials - General,Variety Stores,GPC
Statement 18/05/2016,Adults and Communities,PAYPAL  TELEGRMO,07/06/2016,4.96,General Equipment - General,Telecommunication Equipment Including Telephone Sa,GPC
Statement 18/05/2016,Adults and Communities,POUNDWORLD RETAIL,10/06/2016,17,Materials - General,Discount Stores,GPC
Statement 18/05/2016,Adults and Communities,POUNDWORLD RETAIL,10/06/2016,4,Materials - General,Discount Stores,GPC
Statement 18/05/2016,Adults and Communities,REDSHED MOTO,13/06/2016,428.99,Furniture - General,"Furniture, Home Furnishings and Equipment Stores,",GPC
Statement 18/05/2016,Adults and Communities,ROBOTSHOP.COM,28/05/2016,374.64,Other Expenditure - General,"RADIO, TELEVISION, AND STEREO STORES (ELECTRONIC STORES)",GPC
Statement 18/05/2016,Adults and Communities,ROYAL MAIL,06/06/2016,321,Postal Services - General,Postage Stamps,GPC
Statement 18/05/2016,Adults and Communities,ROYAL MAIL GROUP,26/05/2016,172.8,Postal Services - General,Postage Stamps,GPC
Statement 18/05/2016,Adults and Communities,RYMAN,15/06/2016,1.2,Client/Volunteers - General,"Stationery, Office, and School Supply Stores",GPC
Statement 18/05/2016,Adults and Communities,RYMAN,25/05/2016,20.78,Other Equipment & Materials - General,"Stationery, Office, and School Supply Stores",GPC
Statement 18/05/2016,Adults and Communities,RYMAN,15/06/2016,5.99,Stationery - General,"Stationery, Office, and School Supply Stores",GPC
Statement 18/05/2016,Adults and Communities,SAFECLEAN,15/06/2016,220,General Equipment - General,Carpet and Upholstery Cleaning,GPC
Statement 18/05/2016,Adults and Communities,SAFECLEAN,16/06/2016,-220,General Equipment - General,Carpet and Upholstery Cleaning,GPC
Statement 18/05/2016,Adults and Communities,SAFESTORE LIMITED,09/06/2016,117,Other Expenditure - General,Public Warehousing,GPC
Statement 18/05/2016,Adults and Communities,SAFETYSIGNSUP.COUK,27/05/2016,3.22,Client/Volunteers - General,"Commercial Photography, Art, Graphics",GPC
Statement 18/05/2016,Adults and Communities,SAFETYSIGNSUP.COUK,27/05/2016,16.03,General Equipment - General,"Commercial Photography, Art, Graphics",GPC
Statement 18/05/2016,Adults and Communities,SAINSBURYS LOCAL,19/05/2016,4,Materials - General,"Grocery Stores, Supermarkets",GPC
Statement 18/05/2016,Adults and Communities,SAINSBURYS LOCAL,24/05/2016,16.35,Provisions - General,"Grocery Stores, Supermarkets",GPC
Statement 18/05/2016,Adults and Communities,SAINSBURYS LOCAL,25/05/2016,8,Provisions - General,"Grocery Stores, Supermarkets",GPC
Statement 18/05/2016,Adults and Communities,SAINSBURY'S S/MKT,25/05/2016,6.09,Other Services - General,"Grocery Stores, Supermarkets",GPC
Statement 18/05/2016,Adults and Communities,SAINSBURY'S S/MKT,25/05/2016,11.3,Provisions - General,"Grocery Stores, Supermarkets",GPC
Statement 18/05/2016,Adults and Communities,SAINSBURY'S S/MKT,10/06/2016,209.15,Provisions - General,"Grocery Stores, Supermarkets",GPC
Statement 18/05/2016,Adults and Communities,SAINSBURYS S/MKTS,31/05/2016,10.55,Provisions - General,"Grocery Stores, Supermarkets",GPC
Statement 18/05/2016,Adults and Communities,SCREWFIX,13/06/2016,14.98,Aids & Adaptations - Minor Adaptations,"Building Materials, Lumber Stores",GPC
Statement 18/05/2016,Adults and Communities,SNAPFISH UK,14/06/2016,10.35,Other Equipment & Materials - General,"Photofinishing Laboratories, Photo Developing",GPC
Statement 18/05/2016,Adults and Communities,SOFTLEYS LTD,10/06/2016,178,Other Expenditure - General,"Eating Places, Restaurants",GPC
Statement 18/05/2016,Adults and Communities,STAFFORDSHIRE COUNTY C,31/05/2016,20,Other Expenditure - General,Government Services-Not Elsewhere Classified,GPC
Statement 18/05/2016,Adults and Communities,STAFFORDSHIRE COUNTY C,02/06/2016,-20,Other Expenditure - General,Government Services-Not Elsewhere Classified,GPC
Statement 18/05/2016,Adults and Communities,STAFFORDSHIRE COUNTY C,10/06/2016,20,Other Expenditure - General,Government Services-Not Elsewhere Classified,GPC
Statement 18/05/2016,Adults and Communities,STAPLES UK,20/05/2016,18.97,Stationery - General,"Stationery, Office, and School Supply Stores",GPC
Statement 18/05/2016,Adults and Communities,SUNNYSIDE GARDEN CENTRE,10/06/2016,10,General Equipment - General,"Florists Supplies, Nursery Stock, and Flowers",GPC
Statement 18/05/2016,Adults and Communities,SURVEYMONKEY.COM,12/06/2016,21.67,IT Equipment - Licences,Computer Network/Information Services,GPC
Statement 18/05/2016,Adults and Communities,T K MAXX,13/06/2016,2.99,Materials - General,Variety Stores,GPC
Statement 18/05/2016,Adults and Communities,TALKTALK BUSINESS,06/06/2016,29.96,Telephones - General,Telecommunication Service Including Local and Long,GPC
Statement 18/05/2016,Adults and Communities,TARRO LOUNGE,27/05/2016,4.12,Other Expenditure - General,"Eating Places, Restaurants",GPC
Statement 18/05/2016,Adults and Communities,TARRO LOUNGE,27/05/2016,4.37,Other Expenditure - General,"Eating Places, Restaurants",GPC
Statement 18/05/2016,Adults and Communities,TESCO STORES 5182,20/05/2016,126.6,Provisions - General,"Grocery Stores, Supermarkets",GPC
Statement 18/05/2016,Adults and Communities,TESCO STORES 5182,23/05/2016,143.5,Provisions - General,"Grocery Stores, Supermarkets",GPC
Statement 18/05/2016,Adults and Communities,TESCO STORES 5182,26/05/2016,162.59,Provisions - General,"Grocery Stores, Supermarkets",GPC
Statement 18/05/2016,Adults and Communities,TESCO STORES 5182,02/06/2016,112.48,Provisions - General,"Grocery Stores, Supermarkets",GPC
Statement 18/05/2016,Adults and Communities,TESCO STORES 5182,06/06/2016,149.86,Provisions - General,"Grocery Stores, Supermarkets",GPC
Statement 18/05/2016,Adults and Communities,TESCO STORES 5182,14/06/2016,65.16,Provisions - General,"Grocery Stores, Supermarkets",GPC
Statement 18/05/2016,Adults and Communities,TESCO-STORES 6195,11/06/2016,2.25,Materials - General,"Grocery Stores, Supermarkets",GPC
Statement 18/05/2016,Adults and Communities,THE BOOK PEOPLE,19/05/2016,282.82,Books - General,Book Stores,GPC
Statement 18/05/2016,Adults and Communities,THE COMMODORE HOTEL,25/05/2016,58.33,Training Expenses - General,"Lodging-Hotels, Motels, Resorts",GPC
Statement 18/05/2016,Adults and Communities,THE RANGE,10/06/2016,19.96,Materials - General,Department Stores,GPC
Statement 18/05/2016,Adults and Communities,TIMPSON LTD,15/06/2016,1.25,Client/Volunteers - General,"Shoe Repair Shops, Shoe Shine Parlors, Hat Cleanin",GPC
Statement 18/05/2016,Adults and Communities,TIMPSON LTD,15/06/2016,6.25,General Equipment - General,"Shoe Repair Shops, Shoe Shine Parlors, Hat Cleanin",GPC
Statement 18/05/2016,Adults and Communities,TRAINLINE,19/05/2016,114.85,Public Transport -  Staff - General,Passenger Railways,GPC
Statement 18/05/2016,Adults and Communities,TRAINLINE,14/06/2016,36.26,Public Transport -  Staff - General,Passenger Railways,GPC
Statement 18/05/2016,Adults and Communities,TRAVELODGE WEBSITE,19/05/2016,74.13,Training Expenses - General,Travelodge,GPC
Statement 18/05/2016,Adults and Communities,TREEHOUSE,23/05/2016,17.29,Schools Agency staff - Support Staff,Schools and Educational Services-Not Elsewhere Cla,GPC
Statement 18/05/2016,Adults and Communities,TSGN,13/06/2016,26.7,Casual/Essential - General,Passenger Railways,GPC
Statement 18/05/2016,Adults and Communities,TVLICENSING.CO.UK,18/05/2016,145.5,Schools Agency staff - Teaching Staff,"Management, Consulting and Public Relations Servic",GPC
Statement 18/05/2016,Adults and Communities,UOL COMMERCIAL SERVICE,20/05/2016,4.05,Other Expenditure - General,"Colleges, Universities, Professional Schools, and",GPC
Statement 18/05/2016,Adults and Communities,VIRGINTRAINSEC PBO STN,17/05/2016,52,Public Transport -  Staff - General,Passenger Railways,GPC
Statement 18/05/2016,Adults and Communities,W BOYES & CO LTD COALV,24/05/2016,5.16,Other Equipment & Materials - General,Discount Stores,GPC
Statement 18/05/2016,Adults and Communities,WAITROSE 847,03/06/2016,8.89,Provisions - General,"Grocery Stores, Supermarkets",GPC
Statement 18/05/2016,Adults and Communities,WATERSTONES,02/06/2016,20.79,Books - General,Book Stores,GPC
Statement 18/05/2016,Adults and Communities,WILKO RETAIL LIMIT,17/05/2016,10,General Equipment - General,Household Appliance Stores,GPC
Statement 18/05/2016,Adults and Communities,WILKO RETAIL LIMIT,16/06/2016,20.05,General Equipment - General,Household Appliance Stores,GPC
Statement 18/05/2016,Adults and Communities,WM MORRISON 054,20/05/2016,121.21,Provisions - General,"Grocery Stores, Supermarkets",GPC
Statement 18/05/2016,Adults and Communities,WM MORRISON 054,21/05/2016,28.76,Provisions - General,"Grocery Stores, Supermarkets",GPC
Statement 18/05/2016,Adults and Communities,WM MORRISON 054,26/05/2016,110.19,Provisions - General,"Grocery Stores, Supermarkets",GPC
Statement 18/05/2016,Adults and Communities,WM MORRISON 054,02/06/2016,132.61,Provisions - General,"Grocery Stores, Supermarkets",GPC
Statement 18/05/2016,Adults and Communities,WM MORRISON 054,02/06/2016,97.24,Provisions - General,"Grocery Stores, Supermarkets",GPC
Statement 18/05/2016,Adults and Communities,WM MORRISON 054,05/06/2016,27.5,Provisions - General,"Grocery Stores, Supermarkets",GPC
Statement 18/05/2016,Adults and Communities,WM MORRISON 054,08/06/2016,93.07,Provisions - General,"Grocery Stores, Supermarkets",GPC
Statement 18/05/2016,Adults and Communities,WM MORRISON 054,11/06/2016,118.44,Provisions - General,"Grocery Stores, Supermarkets",GPC
Statement 18/05/2016,Adults and Communities,WM MORRISON 054,16/06/2016,146.27,Provisions - General,"Grocery Stores, Supermarkets",GPC
Statement 18/05/2016,Adults and Communities,WM MORRISONS,15/06/2016,3,Provisions - General,"Grocery Stores, Supermarkets",GPC
Statement 18/05/2016,Adults and Communities,WM MORRISONS,15/06/2016,34.63,Provisions - General,"Grocery Stores, Supermarkets",GPC
Statement 18/05/2016,Adults and Communities,WOWCHER,16/06/2016,25,General Equipment - General,"Books, Periodicals, and Newspapers",GPC
Statement 18/05/2016,Adults and Communities,WWW.AMPULLA.CO.UK,09/06/2016,51.45,Other Expenditure - General,Industrial Supplies Not Elsewhere Classified,GPC
Statement 18/05/2016,Adults and Communities,WWW.GOV.UK,10/06/2016,10,Schools Agency staff - Teaching Staff,Professional Services-Not Elsewhere Classified,GPC
Statement 18/05/2016,Adults and Communities,WWW.IRONMONGERYDIRECT.,13/06/2016,61.2,Stationery - General,"Glass, Paint, Wallpaper Stores",GPC
Statement 18/05/2016,Adults and Communities,WWW.JUSTGLOVES.CO.UK,14/06/2016,16.85,Protective Clothing & Uniforms - General,Miscellaneous and Specialty Retail Stores,GPC
Statement 18/05/2016,Adults and Communities,WWW.OTSTORES.CO.UK,08/06/2016,14.98,Aids & Adaptations - Minor Adaptations,Medical and Dental Laboratories,GPC
Statement 18/05/2016,Adults and Communities,WWW.POSTURITE.CO.UK,13/06/2016,41.94,General Equipment - General,Commercial Furniture,GPC
Statement 18/05/2016,Adults and Communities,WWW.ROLLER-BLINDS-DIRECT,07/06/2016,4.26,Client/Volunteers - General,"Furniture, Home Furnishings and Equipment Stores,",GPC
Statement 18/05/2016,Adults and Communities,WWW.ROLLER-BLINDS-DIRECT,07/06/2016,21.28,Furniture - General,"Furniture, Home Furnishings and Equipment Stores,",GPC
Statement 18/05/2016,Adults and Communities,WWW.ROLLER-BLINDS-DIRECT,25/05/2016,107.73,General Equipment - General,"Furniture, Home Furnishings and Equipment Stores,",GPC
Statement 18/05/2016,Adults and Communities,WWW.STAPLES.CO.UK,20/05/2016,19.56,General Equipment - General,"Stationery, Office, and School Supply Stores",GPC
Statement 18/05/2016,Adults and Communities,WWW.STAPLES.CO.UK,10/06/2016,16.66,General Equipment - General,"Stationery, Office, and School Supply Stores",GPC
Statement 18/05/2016,Adults and Communities,WWW.STAPLES.CO.UK,10/06/2016,33.46,Stationery - General,"Stationery, Office, and School Supply Stores",GPC
Statement 18/05/2016,Adults and Communities,WWW.TTS-GROUPS.CO.UK,02/06/2016,16.99,Other Equipment & Materials - General,"Stationery, Office, and School Supply Stores",GPC
Statement 18/05/2016,Adults and Communities,WWW.USB-FLASHDRIVE.CO.UK,18/05/2016,416.5,Stationery - General,"Computers, Computer Peripheral Equipment, Software",GPC
Statement 18/05/2016,Adults and Communities,WWW.USB-FLASHDRIVE.CO.UK,23/05/2016,416.5,Stationery - General,"Computers, Computer Peripheral Equipment, Software",GPC
Statement 18/05/2016,Adults and Communities,WWW.VIKING-DIRECT.CO.U,25/05/2016,59.7,Stationery - General,"Stationary, Office Supplies, Printing and Writing",GPC
Statement 18/05/2016,Adults and Communities,WWW.WIPEEASYTABLECLOTH,16/06/2016,325.11,Display/Conservn/Exhibitions - Exhibitions,Miscellaneous House Furnishing Specialty Shops,GPC
Statement 18/05/2016,Adults and Communities,WWW.ZEN.CO.UK,19/05/2016,34.76,Telephones - General,Computer Network/Information Services,GPC
Statement 18/05/2016,Adults and Communities,WWW.ZEN.CO.UK,01/06/2016,34.76,Telephones - General,Computer Network/Information Services,GPC
Statement 18/05/2016,C&YPS-Non Delegated,360 PLAY (LEICESTER) L,01/06/2016,18.65,Public Transport -  Staff - General,RECREATION SERVICES--NOT ELSEWHERE CLASSIFIED,GPC
Statement 18/05/2016,C&YPS-Non Delegated,360 PLAY (LEICESTER) L,01/06/2016,15.25,Public Transport -  Staff - General,RECREATION SERVICES--NOT ELSEWHERE CLASSIFIED,GPC
Statement 18/05/2016,C&YPS-Non Delegated,ALDI,13/06/2016,24.96,Other Expenditure - General,"Grocery Stores, Supermarkets",GPC
Statement 18/05/2016,C&YPS-Non Delegated,ALDI,17/05/2016,62.61,Provisions - General,"Grocery Stores, Supermarkets",GPC
Statement 18/05/2016,C&YPS-Non Delegated,ALDI,19/05/2016,38.57,Provisions - General,"Grocery Stores, Supermarkets",GPC
Statement 18/05/2016,C&YPS-Non Delegated,ALDI,24/05/2016,19.7,Provisions - General,"Grocery Stores, Supermarkets",GPC
Statement 18/05/2016,C&YPS-Non Delegated,ALDI,28/05/2016,30.3,Provisions - General,"Grocery Stores, Supermarkets",GPC
Statement 18/05/2016,C&YPS-Non Delegated,ALDI,01/06/2016,93.04,Provisions - General,"Grocery Stores, Supermarkets",GPC
Statement 18/05/2016,C&YPS-Non Delegated,ALDI,13/06/2016,94.36,Provisions - General,"Grocery Stores, Supermarkets",GPC
Statement 18/05/2016,C&YPS-Non Delegated,Amazon UK Marketplace,20/05/2016,41.54,Books - General,Miscellaneous and Specialty Retail Stores,GPC
Statement 18/05/2016,C&YPS-Non Delegated,Amazon UK Marketplace,25/05/2016,4.68,Books - General,Book Stores,GPC
Statement 18/05/2016,C&YPS-Non Delegated,Amazon UK Marketplace,10/06/2016,11.85,General Equipment - General,Book Stores,GPC
Statement 18/05/2016,C&YPS-Non Delegated,Amazon UK Marketplace,20/05/2016,8.33,IT Equipment - General,Miscellaneous and Specialty Retail Stores,GPC
Statement 18/05/2016,C&YPS-Non Delegated,Amazon UK Marketplace,09/06/2016,43.75,IT Equipment - Purchase - Hardware,Miscellaneous and Specialty Retail Stores,GPC
Statement 18/05/2016,C&YPS-Non Delegated,Amazon UK Marketplace,18/05/2016,12.99,Materials - General,Book Stores,GPC
Statement 18/05/2016,C&YPS-Non Delegated,Amazon UK Marketplace,19/05/2016,5.2,Materials - General,Miscellaneous and Specialty Retail Stores,GPC
Statement 18/05/2016,C&YPS-Non Delegated,Amazon UK Marketplace,20/05/2016,3.2,Materials - General,Miscellaneous and Specialty Retail Stores,GPC
Statement 18/05/2016,C&YPS-Non Delegated,Amazon UK Marketplace,24/05/2016,-11.99,Materials - General,Miscellaneous and Specialty Retail Stores,GPC
Statement 18/05/2016,C&YPS-Non Delegated,Amazon UK Marketplace,27/05/2016,21.29,Materials - General,Miscellaneous and Specialty Retail Stores,GPC
Statement 18/05/2016,C&YPS-Non Delegated,Amazon UK Marketplace,09/06/2016,49.95,Materials - General,Miscellaneous and Specialty Retail Stores,GPC
Statement 18/05/2016,C&YPS-Non Delegated,Amazon UK Marketplace,09/06/2016,80.91,Materials - General,Miscellaneous and Specialty Retail Stores,GPC
Statement 18/05/2016,C&YPS-Non Delegated,Amazon UK Marketplace,18/05/2016,18.27,Other Equipment & Materials - General,Book Stores,GPC
Statement 18/05/2016,C&YPS-Non Delegated,Amazon UK Marketplace,08/06/2016,2.99,Other Equipment & Materials - General,Miscellaneous and Specialty Retail Stores,GPC
Statement 18/05/2016,C&YPS-Non Delegated,Amazon UK Marketplace,08/06/2016,13.3,Other Equipment & Materials - General,Miscellaneous and Specialty Retail Stores,GPC
Statement 18/05/2016,C&YPS-Non Delegated,Amazon UK Marketplace,09/06/2016,8.99,Other Equipment & Materials - General,Book Stores,GPC
Statement 18/05/2016,C&YPS-Non Delegated,Amazon UK Marketplace,09/06/2016,152.42,Other Equipment & Materials - General,Book Stores,GPC
Statement 18/05/2016,C&YPS-Non Delegated,Amazon UK Marketplace,09/06/2016,33.99,Other Equipment & Materials - General,Miscellaneous and Specialty Retail Stores,GPC
Statement 18/05/2016,C&YPS-Non Delegated,Amazon UK Marketplace,12/06/2016,356.01,Other Equipment & Materials - General,Miscellaneous and Specialty Retail Stores,GPC
Statement 18/05/2016,C&YPS-Non Delegated,Amazon UK Marketplace,15/06/2016,121.35,Other Equipment & Materials - General,Miscellaneous and Specialty Retail Stores,GPC
Statement 18/05/2016,C&YPS-Non Delegated,Amazon UK Marketplace,07/06/2016,37.45,Other Expenditure - General,Book Stores,GPC
Statement 18/05/2016,C&YPS-Non Delegated,Amazon UK Marketplace,02/06/2016,35.94,Stationery - General,Book Stores,GPC
Statement 18/05/2016,C&YPS-Non Delegated,Amazon UK Marketplace,02/06/2016,107.18,Stationery - General,Miscellaneous and Specialty Retail Stores,GPC
Statement 18/05/2016,C&YPS-Non Delegated,Amazon UK Marketplace,03/06/2016,21.99,Stationery - General,Book Stores,GPC
Statement 18/05/2016,C&YPS-Non Delegated,Amazon UK Marketplace,09/06/2016,7.4,Subsistence - General,Miscellaneous and Specialty Retail Stores,GPC
Statement 18/05/2016,C&YPS-Non Delegated,Amazon UK Marketplace,10/06/2016,25.99,Subsistence - General,Book Stores,GPC
Statement 18/05/2016,C&YPS-Non Delegated,Amazon UK Marketplace,15/06/2016,24.99,Subsistence - General,Book Stores,GPC
Statement 18/05/2016,C&YPS-Non Delegated,Amazon UK Retail,19/05/2016,42.97,Books - General,Direct Marketers - Other,GPC
Statement 18/05/2016,C&YPS-Non Delegated,Amazon UK Retail,21/05/2016,17.49,General Equipment - General,Direct Marketers - Other,GPC
Statement 18/05/2016,C&YPS-Non Delegated,Amazon UK Retail,09/06/2016,32.81,IT Equipment - General,Direct Marketers - Other,GPC
Statement 18/05/2016,C&YPS-Non Delegated,Amazon UK Retail,12/06/2016,42.71,Other Equipment & Materials - General,Direct Marketers - Other,GPC
Statement 18/05/2016,C&YPS-Non Delegated,Amazon UK Retail,16/06/2016,35.51,Other Equipment & Materials - General,Direct Marketers - Other,GPC
Statement 18/05/2016,C&YPS-Non Delegated,Amazon UK Retail,24/05/2016,23.62,Other Expenditure - General,Direct Marketers - Other,GPC
Statement 18/05/2016,C&YPS-Non Delegated,Amazon UK Retail,28/05/2016,17.49,Other Expenditure - General,Direct Marketers - Other,GPC
Statement 18/05/2016,C&YPS-Non Delegated,Amazon UK Retail,05/06/2016,80.36,Other Expenditure - General,Direct Marketers - Other,GPC
Statement 18/05/2016,C&YPS-Non Delegated,Amazon UK Retail,08/06/2016,14.4,Other Expenditure - General,Direct Marketers - Other,GPC
Statement 18/05/2016,C&YPS-Non Delegated,Amazon UK Retail,16/06/2016,3.56,Other Expenditure - General,Direct Marketers - Other,GPC
Statement 18/05/2016,C&YPS-Non Delegated,Amazon UK Retail,17/05/2016,21.31,Provisions - General,Direct Marketers - Other,GPC
Statement 18/05/2016,C&YPS-Non Delegated,AMAZON UK RETAIL AMAZON.C,01/06/2016,9.01,Materials - General,Miscellaneous and Specialty Retail Stores,GPC
Statement 18/05/2016,C&YPS-Non Delegated,AMAZON UK RETAIL AMAZON.C,08/06/2016,102.18,Materials - General,Miscellaneous and Specialty Retail Stores,GPC
Statement 18/05/2016,C&YPS-Non Delegated,AMAZON UK RETAIL AMAZON.C,09/06/2016,32.81,Subsistence - General,Miscellaneous and Specialty Retail Stores,GPC
Statement 18/05/2016,C&YPS-Non Delegated,AMF BOWLING,01/06/2016,21.7,Public Transport -  Staff - General,"Membership Clubs (Sports, Recreation, Athletic), C",GPC
Statement 18/05/2016,C&YPS-Non Delegated,ARGOS DIRECT,17/05/2016,159.99,Other Transfer Payments - Sector 17- Other,Discount Stores,GPC
Statement 18/05/2016,C&YPS-Non Delegated,ARGOS LTD,21/05/2016,7.99,Materials - General,Discount Stores,GPC
Statement 18/05/2016,C&YPS-Non Delegated,ARGOS LTD,24/05/2016,24.99,Other Expenditure - General,Discount Stores,GPC
Statement 18/05/2016,C&YPS-Non Delegated,ARGOS RETAIL GROUP,19/05/2016,29.99,Other Equipment & Materials - General,Discount Stores,GPC
Statement 18/05/2016,C&YPS-Non Delegated,ARGOS RETAIL GROUP,15/06/2016,187.93,Other Transfer Payments - Leaving Care Grants,Discount Stores,GPC
Statement 18/05/2016,C&YPS-Non Delegated,ARGOS RETAIL GROUP,15/06/2016,289.98,Other Transfer Payments - Leaving Care Grants,Discount Stores,GPC
Statement 18/05/2016,C&YPS-Non Delegated,ARRIVA MID TRAVEL,16/06/2016,65,Other Expenditure - General,"Bus Lines, Charters, Tour Buses",GPC
Statement 18/05/2016,C&YPS-Non Delegated,ASDA SUPERSTORE,17/05/2016,31.46,Hospitality - General,"Grocery Stores, Supermarkets",GPC
Statement 18/05/2016,C&YPS-Non Delegated,ASDA SUPERSTORE,25/05/2016,14.2,Materials - General,"Grocery Stores, Supermarkets",GPC
Statement 18/05/2016,C&YPS-Non Delegated,ASDA SUPERSTORE,13/06/2016,14.04,Materials - General,"Grocery Stores, Supermarkets",GPC
Statement 18/05/2016,C&YPS-Non Delegated,ASDA SUPERSTORE,15/06/2016,6.56,Materials - General,"Grocery Stores, Supermarkets",GPC
Statement 18/05/2016,C&YPS-Non Delegated,ASDA SUPERSTORE,15/06/2016,4,Materials - General,"Grocery Stores, Supermarkets",GPC
Statement 18/05/2016,C&YPS-Non Delegated,B&M RETAIL LTD,20/05/2016,6.96,Materials - General,Discount Stores,GPC
Statement 18/05/2016,C&YPS-Non Delegated,BAKERS WASTE SERVICES,16/06/2016,173,Other Equipment & Materials - General,Business Services-Not Elsewhere Classified,GPC
Statement 18/05/2016,C&YPS-Non Delegated,BEST ONE 80908,08/06/2016,10.5,Materials - General,"Grocery Stores, Supermarkets",GPC
Statement 18/05/2016,C&YPS-Non Delegated,BT BILL PAYMENT 1,09/06/2016,84.9,Telephones - General,Telecommunication Equipment Including Telephone Sa,GPC
Statement 18/05/2016,C&YPS-Non Delegated,BT BILL PAYMENT 1,09/06/2016,96.9,Telephones - General,Telecommunication Equipment Including Telephone Sa,GPC
Statement 18/05/2016,C&YPS-Non Delegated,BT BILL PAYMENT 2,14/06/2016,133.45,Communications Equipment - General,Telecommunication Equipment Including Telephone Sa,GPC
Statement 18/05/2016,C&YPS-Non Delegated,BT BILL PAYMENT 2,26/05/2016,106.8,IT Equipment - Rental,Telecommunication Equipment Including Telephone Sa,GPC
Statement 18/05/2016,C&YPS-Non Delegated,BT BILL PAYMENT 2,01/06/2016,83.7,IT Equipment - Rental,Telecommunication Equipment Including Telephone Sa,GPC
Statement 18/05/2016,C&YPS-Non Delegated,BT BILL PAYMENT 2,14/06/2016,137.25,IT Equipment - Rental,Telecommunication Equipment Including Telephone Sa,GPC
Statement 18/05/2016,C&YPS-Non Delegated,BT BILL PAYMENT 2,26/05/2016,47.91,R & M of Buildings - General,Telecommunication Equipment Including Telephone Sa,GPC
Statement 18/05/2016,C&YPS-Non Delegated,BT BILL PAYMENT 2,26/05/2016,57.7,R & M of Buildings - General,Telecommunication Equipment Including Telephone Sa,GPC
Statement 18/05/2016,C&YPS-Non Delegated,BT BILL PAYMENT 2,20/05/2016,55.89,Telephones - General,Telecommunication Equipment Including Telephone Sa,GPC
Statement 18/05/2016,C&YPS-Non Delegated,BT BILL PAYMENT 2,20/05/2016,55.89,Telephones - General,Telecommunication Equipment Including Telephone Sa,GPC
Statement 18/05/2016,C&YPS-Non Delegated,BT BILL PAYMENT 2,26/05/2016,55.89,Telephones - General,Telecommunication Equipment Including Telephone Sa,GPC
Statement 18/05/2016,C&YPS-Non Delegated,BT BILL PAYMENT 2,27/05/2016,46.2,Telephones - General,Telecommunication Equipment Including Telephone Sa,GPC
Statement 18/05/2016,C&YPS-Non Delegated,BT BILL PAYMENT 2,08/06/2016,85.89,Telephones - General,Telecommunication Equipment Including Telephone Sa,GPC
Statement 18/05/2016,C&YPS-Non Delegated,BT BILL PAYMENT 2,14/06/2016,85.89,Telephones - Mobile Phones,Telecommunication Equipment Including Telephone Sa,GPC
Statement 18/05/2016,C&YPS-Non Delegated,BT PAY BY PHONE,09/06/2016,67.37,Telephones - General,Telecommunication Service Including Local and Long,GPC
Statement 18/05/2016,C&YPS-Non Delegated,BULLS  HEAD,02/06/2016,7.79,Other Expenditure - General,"Eating Places, Restaurants",GPC
Statement 18/05/2016,C&YPS-Non Delegated,BULLS  HEAD,02/06/2016,8.29,Other Expenditure - General,"Eating Places, Restaurants",GPC
Statement 18/05/2016,C&YPS-Non Delegated,CAFFE NERO,14/06/2016,1.9,Subsistence - General,"Eating Places, Restaurants",GPC
Statement 18/05/2016,C&YPS-Non Delegated,CARD FACTORY,09/06/2016,3.28,Personal Needs of Clients - General,"Gift, Card, Novelty, and Souvenir Shops",GPC
Statement 18/05/2016,C&YPS-Non Delegated,CENTRAL ENG COOP,25/05/2016,5.78,Materials - General,Department Stores,GPC
Statement 18/05/2016,C&YPS-Non Delegated,CENTRAL ENG COOP,09/06/2016,5.39,Materials - General,Department Stores,GPC
Statement 18/05/2016,C&YPS-Non Delegated,CENTRAL ENG COOP,10/06/2016,3.13,Materials - General,Department Stores,GPC
Statement 18/05/2016,C&YPS-Non Delegated,CENTRAL ENG COOP,16/06/2016,4.69,Materials - General,Department Stores,GPC
Statement 18/05/2016,C&YPS-Non Delegated,CENTRAL ENG COOP,19/05/2016,12.19,Other Equipment & Materials - General,Department Stores,GPC
Statement 18/05/2016,C&YPS-Non Delegated,CENTRAL ENG COOP,24/05/2016,4.46,Other Equipment & Materials - General,Department Stores,GPC
Statement 18/05/2016,C&YPS-Non Delegated,CENTRAL ENG COOP,07/06/2016,3.91,Other Equipment & Materials - General,Department Stores,GPC
Statement 18/05/2016,C&YPS-Non Delegated,CO-OP GROUP 070417,23/05/2016,7.88,Materials - General,"Grocery Stores, Supermarkets",GPC
Statement 18/05/2016,C&YPS-Non Delegated,CO-OP GROUP 070417,23/05/2016,2,Materials - General,"Grocery Stores, Supermarkets",GPC
Statement 18/05/2016,C&YPS-Non Delegated,CO-OP GROUP PETROL,07/06/2016,2.68,Conference - General,Service Stations (with or without Ancillary Servic,GPC
Statement 18/05/2016,C&YPS-Non Delegated,COSTA COFFEE,13/06/2016,13.5,Other Expenditure - General,"Miscellaneous Food Stores-Convenience Stores, Mark",GPC
Statement 18/05/2016,C&YPS-Non Delegated,DOLPHIN HOUSE,10/06/2016,139,Subsistence - General,"Lodging-Hotels, Motels, Resorts",GPC
Statement 18/05/2016,C&YPS-Non Delegated,FACEBOOK EQ2NZ86L52,31/05/2016,4.1,Publicity/Marketing - Information Provision,Advertising Services,GPC
Statement 18/05/2016,C&YPS-Non Delegated,FAST KEY SERVICES LIMI,01/06/2016,12.28,Other Equipment & Materials - General,Business Services-Not Elsewhere Classified,GPC
Statement 18/05/2016,C&YPS-Non Delegated,FUSION LOUGHBOROUGH LE,27/05/2016,5,Provisions - General,"Membership Clubs (Sports, Recreation, Athletic), C",GPC
Statement 18/05/2016,C&YPS-Non Delegated,GOOSEBERRY BUSH,02/06/2016,239.65,Other Transfer Payments - Section 23 Grants,Child Care Services,GPC
Statement 18/05/2016,C&YPS-Non Delegated,GRO HM PASSPORT OFFICE,10/05/2016,-9.25,Other Transfer Payments - Section 23 Grants,Government Services-Not Elsewhere Classified,GPC
Statement 18/05/2016,C&YPS-Non Delegated,GRO HM PASSPORT OFFICE,20/05/2016,9.25,Other Transfer Payments - Section 23 Grants,Government Services-Not Elsewhere Classified,GPC
Statement 18/05/2016,C&YPS-Non Delegated,GRO HM PASSPORT OFFICE,15/06/2016,23.4,Other Transfer Payments - Section 23 Grants,Government Services-Not Elsewhere Classified,GPC
Statement 18/05/2016,C&YPS-Non Delegated,GRO HM PASSPORT OFFICE,15/06/2016,23.4,Other Transfer Payments - Section 23 Grants,Government Services-Not Elsewhere Classified,GPC
Statement 18/05/2016,C&YPS-Non Delegated,GRO HM PASSPORT OFFICE,15/06/2016,23.4,Other Transfer Payments - Section 23 Grants,Government Services-Not Elsewhere Classified,GPC
Statement 18/05/2016,C&YPS-Non Delegated,GRO HM PASSPORT OFFICE,15/06/2016,23.4,Other Transfer Payments - Section 23 Grants,Government Services-Not Elsewhere Classified,GPC
Statement 18/05/2016,C&YPS-Non Delegated,GRO HM PASSPORT OFFICE,15/06/2016,-23.4,Other Transfer Payments - Section 23 Grants,Government Services-Not Elsewhere Classified,GPC
Statement 18/05/2016,C&YPS-Non Delegated,HAWGRIP NURSERIES,23/05/2016,25.33,Materials - General,"Lawn and Garden Supply Stores, Nurseries",GPC
Statement 18/05/2016,C&YPS-Non Delegated,HAWGRIP NURSERIES,10/06/2016,13.25,Materials - General,"Lawn and Garden Supply Stores, Nurseries",GPC
Statement 18/05/2016,C&YPS-Non Delegated,HM PASSPORT,06/06/2016,180,Other Transfer Payments - Section 23 Grants,Government Services-Not Elsewhere Classified,GPC
Statement 18/05/2016,C&YPS-Non Delegated,HOLIDAY INN LEICES,19/05/2016,5.42,Public Transport -  Staff - General,"Lodging-Hotels, Motels, Resorts",GPC
Statement 18/05/2016,C&YPS-Non Delegated,HOTEL PAID VIA EVIIVO,24/05/2016,45,Other Transfer Payments - Leaving Care Grants,Business Services-Not Elsewhere Classified,GPC
Statement 18/05/2016,C&YPS-Non Delegated,HP INC UK LIMITED,24/05/2016,69.6,IT Equipment - Software,"Computers, Computer Peripheral Equipment, Software",GPC
Statement 18/05/2016,C&YPS-Non Delegated,KCJONESCONF,23/05/2016,335,Other Expenditure - General,"Theatrical Products (Except Motion Pictures), Tick",GPC
Statement 18/05/2016,C&YPS-Non Delegated,LEIC CITY COUNCIL,20/05/2016,13,Other Transfer Payments - Section 23 Grants,Government Services-Not Elsewhere Classified,GPC
Statement 18/05/2016,C&YPS-Non Delegated,LEIC CITY COUNCIL,03/06/2016,13,Other Transfer Payments - Section 23 Grants,Government Services-Not Elsewhere Classified,GPC
Statement 18/05/2016,C&YPS-Non Delegated,LEIC CITY COUNCIL,03/06/2016,13,Other Transfer Payments - Section 23 Grants,Government Services-Not Elsewhere Classified,GPC
Statement 18/05/2016,C&YPS-Non Delegated,LEIC CITY COUNCIL,03/06/2016,13,Other Transfer Payments - Section 23 Grants,Government Services-Not Elsewhere Classified,GPC
Statement 18/05/2016,C&YPS-Non Delegated,LEIC CITY COUNCIL,06/06/2016,-3,Other Transfer Payments - Section 23 Grants,Government Services-Not Elsewhere Classified,GPC
Statement 18/05/2016,C&YPS-Non Delegated,LEIC CITY COUNCIL,20/05/2016,13,Other Transfer Payments - Sector 17- Other,Government Services-Not Elsewhere Classified,GPC
Statement 18/05/2016,C&YPS-Non Delegated,LEIC CITY COUNCIL,31/05/2016,33,Other Transfer Payments - Sector 17- Other,Government Services-Not Elsewhere Classified,GPC
Statement 18/05/2016,C&YPS-Non Delegated,LEICESTERSHIRE C COUNC,18/05/2016,11,Other Expenditure - General,Government Services-Not Elsewhere Classified,GPC
Statement 18/05/2016,C&YPS-Non Delegated,LEICESTERSHIRE C COUNC,25/05/2016,16,Other Transfer Payments - Section 23 Grants,Government Services-Not Elsewhere Classified,GPC
Statement 18/05/2016,C&YPS-Non Delegated,LEICESTERSHIRE C COUNC,24/05/2016,-11,Other Transfer Payments - Sector 17- Other,Government Services-Not Elsewhere Classified,GPC
Statement 18/05/2016,C&YPS-Non Delegated,LIDL UK,24/05/2016,69.12,Provisions - General,"Grocery Stores, Supermarkets",GPC
Statement 18/05/2016,C&YPS-Non Delegated,LIDL UK,03/06/2016,5.27,Provisions - General,"Grocery Stores, Supermarkets",GPC
Statement 18/05/2016,C&YPS-Non Delegated,LIDL UK,07/06/2016,94.89,Provisions - General,"Grocery Stores, Supermarkets",GPC
Statement 18/05/2016,C&YPS-Non Delegated,LINKEDIN-274 9842284,17/05/2016,227.94,Recruitment Advertising - General,Continuity/Subscription Merchants,GPC
Statement 18/05/2016,C&YPS-Non Delegated,LINKEDIN-280 4173934,16/06/2016,227.94,Recruitment Advertising - General,Continuity/Subscription Merchants,GPC
Statement 18/05/2016,C&YPS-Non Delegated,LINKEDIN-2804155804,16/06/2016,227.94,Recruitment Advertising - General,Continuity/Subscription Merchants,GPC
Statement 18/05/2016,C&YPS-Non Delegated,LITTLEWOODS CLEAR,20/05/2016,5,Materials - General,Discount Stores,GPC
Statement 18/05/2016,C&YPS-Non Delegated,LP4,24/05/2016,5.2,Subsistence - General,Fast-Food Restaurants (Quick Payment Service Pilot,GPC
Statement 18/05/2016,C&YPS-Non Delegated,MARKS&SPENCER PLC SACA,09/06/2016,10.5,Materials - General,"Grocery Stores, Supermarkets",GPC
Statement 18/05/2016,C&YPS-Non Delegated,MCDONALDS,19/05/2016,3.48,Other Expenditure - General,"Eating Places, Restaurants",GPC
Statement 18/05/2016,C&YPS-Non Delegated,MCDONALDS,24/05/2016,6.48,Other Expenditure - General,Fast-Food Restaurants (Quick Payment Service Pilot,GPC
Statement 18/05/2016,C&YPS-Non Delegated,MCDONALDS,24/05/2016,2.99,Subsistence - General,"Eating Places, Restaurants",GPC
Statement 18/05/2016,C&YPS-Non Delegated,MCDONALDS,03/06/2016,3.32,Subsistence - General,"Eating Places, Restaurants",GPC
Statement 18/05/2016,C&YPS-Non Delegated,MCDONALDS,07/06/2016,8.23,Subsistence - General,Fast-Food Restaurants (Quick Payment Service Pilot,GPC
Statement 18/05/2016,C&YPS-Non Delegated,MCDONALDS,13/06/2016,8.15,Subsistence - General,"Eating Places, Restaurants",GPC
Statement 18/05/2016,C&YPS-Non Delegated,NANDOS LUTON,03/06/2016,35.35,Subsistence - General,"Eating Places, Restaurants",GPC
Statement 18/05/2016,C&YPS-Non Delegated,NCP LIMITED,31/05/2016,4,Casual/Essential - General,Automobile Parking Lots and Garages,GPC
Statement 18/05/2016,C&YPS-Non Delegated,NCP LIMITED,26/05/2016,3.5,Provisions - General,Automobile Parking Lots and Garages,GPC
Statement 18/05/2016,C&YPS-Non Delegated,NEW LOOK 2076,04/06/2016,6.65,Provisions - General,Women's Ready to Wear Shoes,GPC
Statement 18/05/2016,C&YPS-Non Delegated,NWLDC CARD PAYMENT,27/05/2016,191.42,Other Expenditure - General,Government Services-Not Elsewhere Classified,GPC
Statement 18/05/2016,C&YPS-Non Delegated,OFFICIALRECORDCOUK,10/06/2016,8.75,Other Transfer Payments - Section 23 Grants,"Management, Consulting and Public Relations Servic",GPC
Statement 18/05/2016,C&YPS-Non Delegated,OFFICIALRECORDCOUK,16/06/2016,46.98,Other Transfer Payments - Section 23 Grants,"Management, Consulting and Public Relations Servic",GPC
Statement 18/05/2016,C&YPS-Non Delegated,POST OFFICE COUNTER,09/06/2016,13.2,Postal Services - General,Postage Stamps,GPC
Statement 18/05/2016,C&YPS-Non Delegated,POUNDSTRETCHER 175,03/06/2016,23.98,Cleaning Materials - General,"Drapery, Window Coverings, and Upholstery Stores",GPC
Statement 18/05/2016,C&YPS-Non Delegated,PREMIER INN44521815,17/05/2016,224.14,Training Expenses - General,PREMIER TRAVEL,GPC
Statement 18/05/2016,C&YPS-Non Delegated,PREMIER INN44521815,25/05/2016,74.99,Training Expenses - General,PREMIER TRAVEL,GPC
Statement 18/05/2016,C&YPS-Non Delegated,PREMIERMEETINGS.CO.UK,11/06/2016,660,Other Equipment & Materials - General,Business Services-Not Elsewhere Classified,GPC
Statement 18/05/2016,C&YPS-Non Delegated,PREMIERMEETINGS.CO.UK,16/06/2016,121.2,Other Equipment & Materials - General,Business Services-Not Elsewhere Classified,GPC
Statement 18/05/2016,C&YPS-Non Delegated,RINGGO,13/06/2016,2,Casual/Essential - General,Automobile Parking Lots and Garages,GPC
Statement 18/05/2016,C&YPS-Non Delegated,RYANAIR     22400000UR1MM,14/06/2016,14.28,Other Transfer Payments - Section 23 Grants,RYANAIR,GPC
Statement 18/05/2016,C&YPS-Non Delegated,SAINSBURY'S S/MKT,31/05/2016,10.5,Other Expenditure - General,"Grocery Stores, Supermarkets",GPC
Statement 18/05/2016,C&YPS-Non Delegated,SAINSBURY'S S/MKT,02/06/2016,6.5,Subsistence - General,"Grocery Stores, Supermarkets",GPC
Statement 18/05/2016,C&YPS-Non Delegated,SAINSBURYS S/MKTS,26/05/2016,2.32,Materials - General,"Grocery Stores, Supermarkets",GPC
Statement 18/05/2016,C&YPS-Non Delegated,SAINSBURYS S/MKTS,16/06/2016,12.83,Other Equipment & Materials - General,"Grocery Stores, Supermarkets",GPC
Statement 18/05/2016,C&YPS-Non Delegated,SAINSBURYS S/MKTS,07/06/2016,104.2,Provisions - General,"Grocery Stores, Supermarkets",GPC
Statement 18/05/2016,C&YPS-Non Delegated,SAINSBURYS S/MKTS,09/06/2016,8,Provisions - General,"Grocery Stores, Supermarkets",GPC
Statement 18/05/2016,C&YPS-Non Delegated,STAPLES UK,31/05/2016,20.41,Other Equipment & Materials - General,"Stationery, Office, and School Supply Stores",GPC
Statement 18/05/2016,C&YPS-Non Delegated,STARBUCKS,31/05/2016,10.74,Other Expenditure - General,Fast-Food Restaurants (Quick Payment Service Pilot,GPC
Statement 18/05/2016,C&YPS-Non Delegated,SUBWAY,31/05/2016,3.99,Subsistence - General,"Eating Places, Restaurants",GPC
Statement 18/05/2016,C&YPS-Non Delegated,TESCO PFS 6178,25/05/2016,3.17,Provisions - General,Service Stations (with or without Ancillary Servic,GPC
Statement 18/05/2016,C&YPS-Non Delegated,TESCO STORE 2849,18/05/2016,1.49,Materials - General,"Grocery Stores, Supermarkets",GPC
Statement 18/05/2016,C&YPS-Non Delegated,TESCO STORE 2849,23/05/2016,9.8,Other Equipment & Materials - General,"Grocery Stores, Supermarkets",GPC
Statement 18/05/2016,C&YPS-Non Delegated,TESCO STORE 2849,07/06/2016,23.99,Other Equipment & Materials - General,"Grocery Stores, Supermarkets",GPC
Statement 18/05/2016,C&YPS-Non Delegated,TESCO STORE 2849,16/06/2016,70.18,Other Equipment & Materials - General,"Grocery Stores, Supermarkets",GPC
Statement 18/05/2016,C&YPS-Non Delegated,TESCO STORE 2849,16/06/2016,6,Other Equipment & Materials - General,"Grocery Stores, Supermarkets",GPC
Statement 18/05/2016,C&YPS-Non Delegated,TESCO STORE 2849,03/06/2016,20.99,Other Expenditure - General,"Grocery Stores, Supermarkets",GPC
Statement 18/05/2016,C&YPS-Non Delegated,TESCO STORE 2849,08/06/2016,2.98,Subsistence - General,"Grocery Stores, Supermarkets",GPC
Statement 18/05/2016,C&YPS-Non Delegated,TESCO STORES 3076,20/05/2016,16.24,Materials - General,"Grocery Stores, Supermarkets",GPC
Statement 18/05/2016,C&YPS-Non Delegated,TESCO STORES 5182,18/05/2016,43.61,Other Expenditure - General,"Grocery Stores, Supermarkets",GPC
Statement 18/05/2016,C&YPS-Non Delegated,TESCO STORES 5902,02/06/2016,22.64,Provisions - General,"Grocery Stores, Supermarkets",GPC
Statement 18/05/2016,C&YPS-Non Delegated,TESCO STORES 5902,07/06/2016,99.93,Provisions - General,"Grocery Stores, Supermarkets",GPC
Statement 18/05/2016,C&YPS-Non Delegated,TESCO STORES 5902,07/06/2016,5.9,Provisions - General,"Grocery Stores, Supermarkets",GPC
Statement 18/05/2016,C&YPS-Non Delegated,TESCO STORES 6135,17/05/2016,16.99,Other Expenditure - General,"Grocery Stores, Supermarkets",GPC
Statement 18/05/2016,C&YPS-Non Delegated,TESCO STORES 6135,14/06/2016,23.6,Other Expenditure - General,"Grocery Stores, Supermarkets",GPC
Statement 18/05/2016,C&YPS-Non Delegated,THE BOOK PEOPLE,15/06/2016,98.47,Books - General,Book Stores,GPC
Statement 18/05/2016,C&YPS-Non Delegated,THE LULLABY TRUST,09/06/2016,16.5,Other Equipment & Materials - General,Charitable and Social Service Organizations,GPC
Statement 18/05/2016,C&YPS-Non Delegated,TOM TOON AND DAUGHERS,23/05/2016,135,Other Equipment & Materials - General,"Equipment Rental and Leasing Services, Tool Rental",GPC
Statement 18/05/2016,C&YPS-Non Delegated,TRAINLINE,11/06/2016,29.07,Casual/Essential - General,Passenger Railways,GPC
Statement 18/05/2016,C&YPS-Non Delegated,VISTAPR VistaPrint.uk,24/05/2016,17.45,Printing - General,Miscellaneous Publishing and  Printing,GPC
Statement 18/05/2016,C&YPS-Non Delegated,WATERSTONES,06/06/2016,16.9,Books - General,Book Stores,GPC
Statement 18/05/2016,C&YPS-Non Delegated,WEST COAST TRAINS,16/06/2016,6,Casual/Essential - General,Automobile Parking Lots and Garages,GPC
Statement 18/05/2016,C&YPS-Non Delegated,WILKO RETAIL LIMIT,07/06/2016,6,Materials - General,Household Appliance Stores,GPC
Statement 18/05/2016,C&YPS-Non Delegated,WM MORRISON 054,23/05/2016,38.2,Other Expenditure - General,"Grocery Stores, Supermarkets",GPC
Statement 18/05/2016,C&YPS-Non Delegated,WM MORRISON 054,06/06/2016,36.13,Provisions - General,"Grocery Stores, Supermarkets",GPC
Statement 18/05/2016,C&YPS-Non Delegated,WP-WARWICKSHIRE CO,18/05/2016,10.64,Other Expenditure - General,Government Services-Not Elsewhere Classified,GPC
Statement 18/05/2016,C&YPS-Non Delegated,WWW.360PLAY.UK.COM-DOM,31/05/2016,5,Public Transport -  Staff - General,RECREATION SERVICES--NOT ELSEWHERE CLASSIFIED,GPC
Statement 18/05/2016,C&YPS-Non Delegated,WWW.ANNARBOR.CO.UK,25/05/2016,131,General Equipment - General,Catalog Merchants,GPC
Statement 18/05/2016,C&YPS-Non Delegated,WWW.ANNARBOR.CO.UK,08/06/2016,192,General Equipment - General,Catalog Merchants,GPC
Statement 18/05/2016,C&YPS-Non Delegated,WWW.DOMINOS.CO.UK,08/06/2016,47.98,Subsistence - General,"Eating Places, Restaurants",GPC
Statement 18/05/2016,C&YPS-Non Delegated,WWW.INSTANTPRINT.C,01/06/2016,31.99,Other Expenditure - General,Quick Copy and Reproduction Services,GPC
Statement 18/05/2016,C&YPS-Non Delegated,WWW.MILKANDMORE.CO.UK,23/05/2016,10.92,Provisions - General,Continuity/Subscription Merchants,GPC
Statement 18/05/2016,C&YPS-Non Delegated,WWW.MILKANDMORE.CO.UK,01/06/2016,11.75,Provisions - General,Continuity/Subscription Merchants,GPC
Statement 18/05/2016,C&YPS-Non Delegated,WWW.MILKANDMORE.CO.UK,01/06/2016,14.04,Provisions - General,Continuity/Subscription Merchants,GPC
Statement 18/05/2016,C&YPS-Non Delegated,WWW.MILKANDMORE.CO.UK,01/06/2016,7.8,Provisions - General,Continuity/Subscription Merchants,GPC
Statement 18/05/2016,C&YPS-Non Delegated,WWW.POSTURITE.CO.UK,07/06/2016,57.54,Stationery - General,Commercial Furniture,GPC
Statement 18/05/2016,C&YPS-Non Delegated,WWW.POSTURITE.CO.UK,14/06/2016,57.54,Stationery - General,Commercial Furniture,GPC
Statement 18/05/2016,C&YPS-Non Delegated,WWW.ROYALMAIL.COM,01/06/2016,128,Postal Services - General,Postage Stamps,GPC
Statement 18/05/2016,C&YPS-Non Delegated,WWW.TWYCROSSZOO.ORG,02/06/2016,44.79,Other Transfer Payments - Section 23 Grants,Tourist Attractions and Exhibits,GPC
Statement 18/05/2016,C&YPS-Non Delegated,WWW.TWYCROSSZOO.ORG,13/06/2016,49.11,Other Transfer Payments - Section 23 Grants,Tourist Attractions and Exhibits,GPC
Statement 18/05/2016,C&YPS-Non Delegated,WWW.TXTLOCAL.COM,02/06/2016,117.6,Telephones - General,"Management, Consulting and Public Relations Servic",GPC
Statement 18/05/2016,C&YPS-Non Delegated,X SPORT,17/05/2016,60,Personal Needs of Clients - Clothing,"Membership Clubs (Sports, Recreation, Athletic), C",GPC
Statement 18/05/2016,C&YPS-Schools,ARGOS RETAIL GROUP,14/06/2016,57.82,Materials - General,Discount Stores,GPC
Statement 18/05/2016,C&YPS-Schools,ASDA HOME SHOPPING,06/06/2016,76.83,Materials - General,"Grocery Stores, Supermarkets",GPC
Statement 18/05/2016,C&YPS-Schools,ASDA HOME SHOPPING,13/06/2016,95.47,Materials - General,"Grocery Stores, Supermarkets",GPC
Statement 18/05/2016,C&YPS-Schools,CENTRAL ENG COOP,08/06/2016,8.85,Materials - General,Department Stores,GPC
Statement 18/05/2016,C&YPS-Schools,CHERRY LANE RETAIL,06/06/2016,27.94,Materials - General,Discount Stores,GPC
Statement 18/05/2016,C&YPS-Schools,SAINSBURYS DPASS,01/06/2016,30,Materials - General,"Grocery Stores, Supermarkets",GPC
Statement 18/05/2016,C&YPS-Schools,SAINSBURYS DPASS,09/06/2016,-30,Materials - General,"Grocery Stores, Supermarkets",GPC
Statement 18/05/2016,C&YPS-Schools,SAINSBURYS S/MKTS,18/05/2016,38.85,Materials - General,"Grocery Stores, Supermarkets",GPC
Statement 18/05/2016,C&YPS-Schools,SAINSBURYS S/MKTS,26/05/2016,16.5,Materials - General,"Grocery Stores, Supermarkets",GPC
Statement 18/05/2016,C&YPS-Schools,TESCO STORE 2846,23/05/2016,96.68,Materials - General,"Grocery Stores, Supermarkets",GPC
Statement 18/05/2016,C&YPS-Schools,TOYS R US,27/05/2016,9.49,Materials - General,Miscellaneous General Merchandise Stores,GPC
Statement 18/05/2016,C&YPS-Schools,WWW.INSECTLORE-EUROPE.CO,27/05/2016,75.93,Other Expenditure - General,Catalog Merchants,GPC
Statement 18/05/2016,Central Items,Amazon UK Marketplace,16/06/2016,13.89,Administration Expenses - General,Miscellaneous and Specialty Retail Stores,GPC
Statement 18/05/2016,Central Items,Amazon UK Retail,18/05/2016,20.75,Administration Expenses - General,Direct Marketers - Other,GPC
Statement 18/05/2016,Chief Executive,Amazon Digital Dwnlds,08/06/2016,0.83,Printing - General,Record Shops,GPC
Statement 18/05/2016,Chief Executive,Amazon UK Marketplace,15/06/2016,8.78,Materials - General,Miscellaneous and Specialty Retail Stores,GPC
Statement 18/05/2016,Chief Executive,Amazon UK Marketplace,16/06/2016,9.98,Materials - General,Miscellaneous and Specialty Retail Stores,GPC
Statement 18/05/2016,Chief Executive,Amazon UK Marketplace,08/06/2016,7.12,Other Expenditure - General,Miscellaneous and Specialty Retail Stores,GPC
Statement 18/05/2016,Chief Executive,Amazon UK Marketplace,09/06/2016,16.48,Other Expenditure - General,Miscellaneous and Specialty Retail Stores,GPC
Statement 18/05/2016,Chief Executive,Amazon UK Marketplace,24/05/2016,21.9,Stationery - General,Book Stores,GPC
Statement 18/05/2016,Chief Executive,Amazon UK Marketplace,26/05/2016,77.86,Stationery - General,Book Stores,GPC
Statement 18/05/2016,Chief Executive,Amazon UK Marketplace,27/05/2016,116.79,Stationery - General,Miscellaneous and Specialty Retail Stores,GPC
Statement 18/05/2016,Chief Executive,Amazon UK Retail,25/05/2016,178.95,Other Expenditure - General,Direct Marketers - Other,GPC
Statement 18/05/2016,Chief Executive,Amazon UK Retail,27/05/2016,21.54,Other Expenditure - General,Direct Marketers - Other,GPC
Statement 18/05/2016,Chief Executive,Amazon UK Retail,17/05/2016,29.46,Stationery - General,Direct Marketers - Other,GPC
Statement 18/05/2016,Chief Executive,Amazon UK Retail,27/05/2016,102.94,Stationery - General,Direct Marketers - Other,GPC
Statement 18/05/2016,Chief Executive,CHARNWOOD BOROUGH COUNCI,14/06/2016,4.9,Casual/Essential - General,Automobile Parking Lots and Garages,GPC
Statement 18/05/2016,Chief Executive,MACMILLAN DISTRIBUTION,17/05/2016,122.95,Printing - General,Miscellaneous Publishing and  Printing,GPC
Statement 18/05/2016,Chief Executive,MAN.AIRPORT REVENUE OF,07/06/2016,84,Other Expenditure - General,"Airports, Airport Terminals, Flying Fields",GPC
Statement 18/05/2016,Chief Executive,MAN.AIRPORT REVENUE OF,14/06/2016,84,Other Expenditure - General,"Airports, Airport Terminals, Flying Fields",GPC
Statement 18/05/2016,Chief Executive,MCDONALDS,21/05/2016,8.58,Subsistence - General,Fast-Food Restaurants (Quick Payment Service Pilot,GPC
Statement 18/05/2016,Chief Executive,NCP LIMITED,25/05/2016,12,Casual/Essential - General,Automobile Parking Lots and Garages,GPC
Statement 18/05/2016,Chief Executive,NCP LIMITED,27/05/2016,12,Casual/Essential - General,Automobile Parking Lots and Garages,GPC
Statement 18/05/2016,Chief Executive,NCP LIMITED,04/06/2016,4.58,Casual/Essential - General,Automobile Parking Lots and Garages,GPC
Statement 18/05/2016,Chief Executive,NCP LIMITED,06/06/2016,6.25,Casual/Essential - General,Automobile Parking Lots and Garages,GPC
Statement 18/05/2016,Chief Executive,NCP LIMITED BRADFORD,07/06/2016,5,Casual/Essential - General,Automobile Parking Lots and Garages,GPC
Statement 18/05/2016,Chief Executive,ROYAL MAIL,17/05/2016,238,Postal Services - General,Postage Stamps,GPC
Statement 18/05/2016,Chief Executive,ROYAL MAIL,18/05/2016,55,Postal Services - General,Postage Stamps,GPC
Statement 18/05/2016,Chief Executive,TESCO STORE 2849,31/05/2016,30.06,Materials - General,"Grocery Stores, Supermarkets",GPC
Statement 18/05/2016,Chief Executive,TFL CC/LEZ CHARGE,19/05/2016,11.5,Other Expenditure - General,"Bridge and Road Fees, Tolls",GPC
Statement 18/05/2016,Chief Executive,TRAVELODGE WEBSITE,24/05/2016,118.95,Other Expenditure - General,Travelodge,GPC
Statement 18/05/2016,Chief Executive,TRUPRINT UK,25/05/2016,33.88,Printing - General,"Photofinishing Laboratories, Photo Developing",GPC
Statement 18/05/2016,Chief Executive,WWW.FANEVALLEY.COM,14/06/2016,155,Other Expenditure - General,Hardware Stores,GPC
Statement 18/05/2016,Chief Executive,WWW.NEOPOST.CO.UK,09/06/2016,459,Postal Services - General,"Stationary, Office Supplies, Printing and Writing",GPC
Statement 18/05/2016,Corporate Resources,A T HOUGHTON,23/05/2016,75.09,Other Services - General,Miscellaneous Automotive Dealers -  Not Elsewhere,GPC
Statement 18/05/2016,Corporate Resources,ABBEY CARS,23/05/2016,30.6,Public Transport -  Staff - General,Taxicabs and Limousines,GPC
Statement 18/05/2016,Corporate Resources,Amazon Svcs Europe SAR,25/05/2016,-34.35,Stationery - General,Book Stores,GPC
Statement 18/05/2016,Corporate Resources,Amazon UK Marketplace,25/05/2016,7,Books - General,Book Stores,GPC
Statement 18/05/2016,Corporate Resources,Amazon UK Marketplace,23/05/2016,6.49,Materials - General,Miscellaneous and Specialty Retail Stores,GPC
Statement 18/05/2016,Corporate Resources,Amazon UK Marketplace,24/05/2016,3.98,Materials - General,Miscellaneous and Specialty Retail Stores,GPC
Statement 18/05/2016,Corporate Resources,Amazon UK Marketplace,24/05/2016,8.58,Materials - General,Miscellaneous and Specialty Retail Stores,GPC
Statement 18/05/2016,Corporate Resources,Amazon UK Marketplace,08/06/2016,3.88,Materials - General,Book Stores,GPC
Statement 18/05/2016,Corporate Resources,Amazon UK Marketplace,08/06/2016,3.2,Materials - General,Miscellaneous and Specialty Retail Stores,GPC
Statement 18/05/2016,Corporate Resources,Amazon UK Marketplace,08/06/2016,-25.8,Materials - General,Miscellaneous and Specialty Retail Stores,GPC
Statement 18/05/2016,Corporate Resources,Amazon UK Marketplace,19/05/2016,35.88,Other Expenditure - General,Miscellaneous and Specialty Retail Stores,GPC
Statement 18/05/2016,Corporate Resources,Amazon UK Marketplace,03/06/2016,53.94,Protective Clothing & Uniforms - General,Miscellaneous and Specialty Retail Stores,GPC
Statement 18/05/2016,Corporate Resources,Amazon UK Marketplace,17/05/2016,6.98,Stationery - General,Book Stores,GPC
Statement 18/05/2016,Corporate Resources,Amazon UK Marketplace,18/05/2016,17.94,Stationery - General,Miscellaneous and Specialty Retail Stores,GPC
Statement 18/05/2016,Corporate Resources,Amazon UK Marketplace,19/05/2016,21.98,Stationery - General,Book Stores,GPC
Statement 18/05/2016,Corporate Resources,Amazon UK Marketplace,23/05/2016,-17,Stationery - General,Miscellaneous and Specialty Retail Stores,GPC
Statement 18/05/2016,Corporate Resources,Amazon UK Marketplace,26/05/2016,81.88,Stationery - General,Miscellaneous and Specialty Retail Stores,GPC
Statement 18/05/2016,Corporate Resources,Amazon UK Marketplace,09/06/2016,2.81,Training Expenses - General,Book Stores,GPC
Statement 18/05/2016,Corporate Resources,Amazon UK Marketplace,09/06/2016,2.81,Training Expenses - General,Miscellaneous and Specialty Retail Stores,GPC
Statement 18/05/2016,Corporate Resources,Amazon UK Marketplace,10/06/2016,7.15,Training Expenses - General,Miscellaneous and Specialty Retail Stores,GPC
Statement 18/05/2016,Corporate Resources,Amazon UK Marketplace,14/06/2016,195,Training Expenses - General,Miscellaneous and Specialty Retail Stores,GPC
Statement 18/05/2016,Corporate Resources,Amazon UK Retail,25/05/2016,12.28,Operational Equipment - General,Direct Marketers - Other,GPC
Statement 18/05/2016,Corporate Resources,Amazon UK Retail,17/05/2016,14.12,Other Expenditure - General,Direct Marketers - Other,GPC
Statement 18/05/2016,Corporate Resources,Amazon UK Retail,19/05/2016,13.45,Other Expenditure - General,Direct Marketers - Other,GPC
Statement 18/05/2016,Corporate Resources,Amazon UK Retail,24/05/2016,12.73,Other Expenditure - General,Direct Marketers - Other,GPC
Statement 18/05/2016,Corporate Resources,Amazon UK Retail,15/06/2016,21.95,Other Expenditure - General,Direct Marketers - Other,GPC
Statement 18/05/2016,Corporate Resources,Amazon UK Retail,23/05/2016,-17.5,Stationery - General,Direct Marketers - Other,GPC
Statement 18/05/2016,Corporate Resources,Amazon UK Retail,25/05/2016,82.68,Stationery - General,Direct Marketers - Other,GPC
Statement 18/05/2016,Corporate Resources,Amazon UK Retail,25/05/2016,23.86,Training Expenses - General,Direct Marketers - Other,GPC
Statement 18/05/2016,Corporate Resources,Amazon UK Retail,01/06/2016,80.82,Training Expenses - General,Direct Marketers - Other,GPC
Statement 18/05/2016,Corporate Resources,Amazon UK Retail,02/06/2016,25.79,Training Expenses - General,Direct Marketers - Other,GPC
Statement 18/05/2016,Corporate Resources,Amazon UK Retail,03/06/2016,25.78,Training Expenses - General,Direct Marketers - Other,GPC
Statement 18/05/2016,Corporate Resources,APCOA FCC,03/06/2016,5.3,Public Transport -  Staff - General,Automobile Parking Lots and Garages,GPC
Statement 18/05/2016,Corporate Resources,ASDA STORES 4477,08/06/2016,7.57,Materials - General,"Grocery Stores, Supermarkets",GPC
Statement 18/05/2016,Corporate Resources,ASDA STORES 4477,18/05/2016,3.01,Other Expenditure - General,"Grocery Stores, Supermarkets",GPC
Statement 18/05/2016,Corporate Resources,ASDA STORES 4477,23/05/2016,8.27,Other Expenditure - General,"Grocery Stores, Supermarkets",GPC
Statement 18/05/2016,Corporate Resources,ASDA STORES 4477,25/05/2016,9.7,Other Expenditure - General,"Grocery Stores, Supermarkets",GPC
Statement 18/05/2016,Corporate Resources,ASDA STORES 4477,08/06/2016,6.95,Other Expenditure - General,"Grocery Stores, Supermarkets",GPC
Statement 18/05/2016,Corporate Resources,ASDA STORES 4477,16/06/2016,5.35,Other Expenditure - General,"Grocery Stores, Supermarkets",GPC
Statement 18/05/2016,Corporate Resources,ASDA SUPERSTORE,30/05/2016,45.04,Materials - General,"Grocery Stores, Supermarkets",GPC
Statement 18/05/2016,Corporate Resources,B & Q 1052,23/05/2016,154.17,Grounds Maint-Non Contract - General,"Building Materials, Lumber Stores",GPC
Statement 18/05/2016,Corporate Resources,B & Q 1052,23/05/2016,112.5,Grounds Maint-Non Contract - General,"Building Materials, Lumber Stores",GPC
Statement 18/05/2016,Corporate Resources,B AND Q 1052,17/05/2016,45,Other Services - General,"Building Materials, Lumber Stores",GPC
Statement 18/05/2016,Corporate Resources,B&M RETAIL LTD,23/05/2016,5.97,Other Services - General,Discount Stores,GPC
Statement 18/05/2016,Corporate Resources,B&M RETAIL LTD,14/06/2016,9.99,Other Services - General,Discount Stores,GPC
Statement 18/05/2016,Corporate Resources,BATH BAKERY LTD,14/06/2016,6.1,Subsistence - General,Bakeries,GPC
Statement 18/05/2016,Corporate Resources,BIP SOLUTIONS,01/06/2016,295,Training Expenses - General,Business and Secretarial Schools,GPC
Statement 18/05/2016,Corporate Resources,BLABY DISTRICT COUNCIL,19/05/2016,3.75,Public Transport -  Staff - General,Automobile Parking Lots and Garages,GPC
Statement 18/05/2016,Corporate Resources,BLORENGE GUEST HOUSE,24/05/2016,262.4,Training Expenses - General,"Lodging-Hotels, Motels, Resorts",GPC
Statement 18/05/2016,Corporate Resources,BT DIRECTORIES,20/05/2016,30.69,Publicity/Marketing - General,Telecommunication Service Including Local and Long,GPC
Statement 18/05/2016,Corporate Resources,BULBS DIRECT BV,28/05/2016,17.85,Other Services - General,Florists,GPC
Statement 18/05/2016,Corporate Resources,BUS TICKET OR EMT WIFI,15/06/2016,15,Public Transport -  Staff - General,"Bus Lines, Charters, Tour Buses",GPC
Statement 18/05/2016,Corporate Resources,BUS/WIFI TICKET,25/05/2016,15,Public Transport -  Staff - General,"Bus Lines, Charters, Tour Buses",GPC
Statement 18/05/2016,Corporate Resources,BUS/WIFI TICKET,02/06/2016,4,Public Transport -  Staff - General,"Bus Lines, Charters, Tour Buses",GPC
Statement 18/05/2016,Corporate Resources,CAFFE GUSTO LTD,15/06/2016,3.55,Subsistence - General,"Eating Places, Restaurants",GPC
Statement 18/05/2016,Corporate Resources,CAPITA BUS SVS-MOTO,06/06/2016,359,Training Expenses - General,Government Services-Not Elsewhere Classified,GPC
Statement 18/05/2016,Corporate Resources,CATCH22,14/06/2016,8.6,Subsistence - General,"Drinking Places (Alcoholic Beverages)-Bars, Tavern",GPC
Statement 18/05/2016,Corporate Resources,CATERINGEQUIPMENT,16/06/2016,82.09,Contract Catering - General,Caterers,GPC
Statement 18/05/2016,Corporate Resources,CIEH,26/05/2016,1127.19,Training Expenses - General,Membership Organizations-Not Elsewhere Classified,GPC
Statement 18/05/2016,Corporate Resources,CIMSPA,08/06/2016,118.8,Other Services - General,Membership Organizations-Not Elsewhere Classified,GPC
Statement 18/05/2016,Corporate Resources,COBBLERS CORNER,08/06/2016,25.96,Other Services - General,"Shoe Repair Shops, Shoe Shine Parlors, Hat Cleanin",GPC
Statement 18/05/2016,Corporate Resources,CONFERENCE ASTON,13/06/2016,15.9,Conference - General,"Lodging-Hotels, Motels, Resorts",GPC
Statement 18/05/2016,Corporate Resources,COOKS FARM SHOP,27/05/2016,8.1,Other Expenditure - Public Enquiry fees,"Lawn and Garden Supply Stores, Nurseries",GPC
Statement 18/05/2016,Corporate Resources,CO-OP GROUP 070412,25/05/2016,23.58,Other Expenditure - General,"Grocery Stores, Supermarkets",GPC
Statement 18/05/2016,Corporate Resources,CO-OP GROUP FOOD,01/06/2016,1.45,Other Expenditure - General,"Grocery Stores, Supermarkets",GPC
Statement 18/05/2016,Corporate Resources,CO-OP LATE SHOP,06/06/2016,2.39,Other Expenditure - General,"Grocery Stores, Supermarkets",GPC
Statement 18/05/2016,Corporate Resources,CROSS COUNTRY CC,08/06/2016,58,Training Expenses - General,Passenger Railways,GPC
Statement 18/05/2016,Corporate Resources,CROSS COUNTRY CC,15/06/2016,43.4,Training Expenses - General,Passenger Railways,GPC
Statement 18/05/2016,Corporate Resources,CURRYS SUPERSTORE,01/06/2016,16.66,Stationery - General,"RADIO, TELEVISION, AND STEREO STORES (ELECTRONIC STORES)",GPC
Statement 18/05/2016,Corporate Resources,CYCLE TRAX,06/06/2016,19.95,Materials - General,Bicycle Shops-Sales and Service,GPC
Statement 18/05/2016,Corporate Resources,DAMAS CAFE,16/06/2016,27.4,Subsistence - General,"Eating Places, Restaurants",GPC
Statement 18/05/2016,Corporate Resources,DESTINET LTD,29/05/2016,174,Publicity/Marketing - General,Advertising Services,GPC
Statement 18/05/2016,Corporate Resources,DISCLOSURE SCOT,06/06/2016,25,IT Equipment - Purchase - Hardware,Government Services-Not Elsewhere Classified,GPC
Statement 18/05/2016,Corporate Resources,DISCLOSURE SCOT,06/06/2016,25,IT Equipment - Purchase - Hardware,Government Services-Not Elsewhere Classified,GPC
Statement 18/05/2016,Corporate Resources,DLR,10/06/2016,50,Public Transport -  Staff - General,Passenger Railways,GPC
Statement 18/05/2016,Corporate Resources,DVLA DIGITAL TACHO,17/05/2016,19,Road Licences - General,Government Services-Not Elsewhere Classified,GPC
Statement 18/05/2016,Corporate Resources,EAST MIDLANDS LEICESTER,24/05/2016,7.5,Public Transport -  Staff - General,Automobile Parking Lots and Garages,GPC
Statement 18/05/2016,Corporate Resources,EAST MIDLANDS LEICESTER,09/06/2016,7.5,Public Transport -  Staff - General,Automobile Parking Lots and Garages,GPC
Statement 18/05/2016,Corporate Resources,EAST MIDLANDS LEICESTER,14/06/2016,13.5,Public Transport -  Staff - General,Automobile Parking Lots and Garages,GPC
Statement 18/05/2016,Corporate Resources,EAST MIDLANDS MARKET HAR,16/05/2016,11,Public Transport -  Staff - General,Automobile Parking Lots and Garages,GPC
Statement 18/05/2016,Corporate Resources,EAST MIDLANDS MARKET HAR,17/05/2016,11,Public Transport -  Staff - General,Automobile Parking Lots and Garages,GPC
Statement 18/05/2016,Corporate Resources,EAST MIDLANDS MARKET HAR,18/05/2016,17.5,Public Transport -  Staff - General,Automobile Parking Lots and Garages,GPC
Statement 18/05/2016,Corporate Resources,EAST MIDLANDS MARKET HAR,18/05/2016,17.5,Public Transport -  Staff - General,Automobile Parking Lots and Garages,GPC
Statement 18/05/2016,Corporate Resources,EAST MIDLANDS MARKET HAR,20/05/2016,11,Public Transport -  Staff - General,Automobile Parking Lots and Garages,GPC
Statement 18/05/2016,Corporate Resources,EAST MIDLANDS MARKET HAR,20/05/2016,22,Public Transport -  Staff - General,Automobile Parking Lots and Garages,GPC
Statement 18/05/2016,Corporate Resources,EAST MIDLANDS MARKET HAR,23/05/2016,11,Public Transport -  Staff - General,Automobile Parking Lots and Garages,GPC
Statement 18/05/2016,Corporate Resources,EAST MIDLANDS MARKET HAR,24/05/2016,11,Public Transport -  Staff - General,Automobile Parking Lots and Garages,GPC
Statement 18/05/2016,Corporate Resources,EAST MIDLANDS MARKET HAR,25/05/2016,33,Public Transport -  Staff - General,Automobile Parking Lots and Garages,GPC
Statement 18/05/2016,Corporate Resources,EAST MIDLANDS MARKET HAR,26/05/2016,11,Public Transport -  Staff - General,Automobile Parking Lots and Garages,GPC
Statement 18/05/2016,Corporate Resources,EAST MIDLANDS MARKET HAR,27/05/2016,11,Public Transport -  Staff - General,Automobile Parking Lots and Garages,GPC
Statement 18/05/2016,Corporate Resources,EAST MIDLANDS MARKET HAR,31/05/2016,11,Public Transport -  Staff - General,Automobile Parking Lots and Garages,GPC
Statement 18/05/2016,Corporate Resources,EAST MIDLANDS MARKET HAR,02/06/2016,11,Public Transport -  Staff - General,Automobile Parking Lots and Garages,GPC
Statement 18/05/2016,Corporate Resources,EAST MIDLANDS MARKET HAR,03/06/2016,11,Public Transport -  Staff - General,Automobile Parking Lots and Garages,GPC
Statement 18/05/2016,Corporate Resources,EAST MIDLANDS MARKET HAR,06/06/2016,11,Public Transport -  Staff - General,Automobile Parking Lots and Garages,GPC
Statement 18/05/2016,Corporate Resources,EAST MIDLANDS MARKET HAR,10/06/2016,22,Public Transport -  Staff - General,Automobile Parking Lots and Garages,GPC
Statement 18/05/2016,Corporate Resources,EAST MIDLANDS MARKET HAR,14/06/2016,11,Public Transport -  Staff - General,Automobile Parking Lots and Garages,GPC
Statement 18/05/2016,Corporate Resources,EAST MIDLANDS MARKET HAR,15/06/2016,11,Public Transport -  Staff - General,Automobile Parking Lots and Garages,GPC
Statement 18/05/2016,Corporate Resources,EAST MIDLANDS TRAI,20/05/2016,14,Public Transport -  Staff - General,Passenger Railways,GPC
Statement 18/05/2016,Corporate Resources,EAST MIDLANDS TRAI,27/05/2016,34.6,Public Transport -  Staff - General,Passenger Railways,GPC
Statement 18/05/2016,Corporate Resources,EAT LTD,17/05/2016,11.48,Subsistence - General,"Eating Places, Restaurants",GPC
Statement 18/05/2016,Corporate Resources,EMAP LTD-SUBSCRIPTIONS,20/05/2016,207.5,Subscriptions - General,Miscellaneous Publishing and  Printing,GPC
Statement 18/05/2016,Corporate Resources,EMAP LTD-SUBSCRIPTIONS,22/05/2016,249,Subscriptions - General,Miscellaneous Publishing and  Printing,GPC
Statement 18/05/2016,Corporate Resources,EMAP LTD-SUBSCRIPTIONS,31/05/2016,-249,Subscriptions - General,Miscellaneous Publishing and  Printing,GPC
Statement 18/05/2016,Corporate Resources,FACEBOOK 85YZB9S672,31/05/2016,3.98,Advertising - General,Advertising Services,GPC
Statement 18/05/2016,Corporate Resources,FAVERSHAMHO,17/05/2016,335,Training Expenses - General,Miscellaneous Publishing and  Printing,GPC
Statement 18/05/2016,Corporate Resources,FOREIGN EXCHANGE FEE,25/05/2016,2.86,Publicity/Marketing - General,Misc-Unknown,GPC
Statement 18/05/2016,Corporate Resources,FOREIGN EXCHANGE FEE,13/06/2016,1.13,Subscriptions - General,Misc-Unknown,GPC
Statement 18/05/2016,Corporate Resources,GANTTIC LLC,11/06/2016,40.99,Subscriptions - General,Miscellaneous and Specialty Retail Stores,GPC
Statement 18/05/2016,Corporate Resources,GILLIVERS LTD,29/05/2016,51.65,Protective Clothing & Uniforms - General,Family Clothing Stores,GPC
Statement 18/05/2016,Corporate Resources,GILLIVERS LTD,03/06/2016,31.66,Protective Clothing & Uniforms - General,Family Clothing Stores,GPC
Statement 18/05/2016,Corporate Resources,GRINDSMITH LTD (DEANSG,08/06/2016,2.5,Subsistence - General,Fast-Food Restaurants (Quick Payment Service Pilot,GPC
Statement 18/05/2016,Corporate Resources,HALFORDS 0428,25/05/2016,43.33,Other Expenditure - General,Bicycle Shops-Sales and Service,GPC
Statement 18/05/2016,Corporate Resources,HARLOW BROS LTD,17/05/2016,55.94,Other Services - General,"Building Materials, Lumber Stores",GPC
Statement 18/05/2016,Corporate Resources,HARLOW BROS LTD,17/05/2016,24.27,Other Services - General,"Building Materials, Lumber Stores",GPC
Statement 18/05/2016,Corporate Resources,HARLOW BROS LTD,18/05/2016,7.66,Other Services - General,"Building Materials, Lumber Stores",GPC
Statement 18/05/2016,Corporate Resources,HARLOW BROS LTD,25/05/2016,43.94,Other Services - General,"Building Materials, Lumber Stores",GPC
Statement 18/05/2016,Corporate Resources,HARLOW BROS LTD,28/05/2016,5.2,Other Services - General,"Building Materials, Lumber Stores",GPC
Statement 18/05/2016,Corporate Resources,HI BANGKOK LIMITED,17/05/2016,17.85,Subsistence - General,"Eating Places, Restaurants",GPC
Statement 18/05/2016,Corporate Resources,HIGGOTTS,17/05/2016,6.95,R & M of Buildings - General,Landscaping and Horticultural Services,GPC
Statement 18/05/2016,Corporate Resources,HOOTSUITE MEDIA INC.,24/05/2016,103.87,Publicity/Marketing - General,Business Services-Not Elsewhere Classified,GPC
Statement 18/05/2016,Corporate Resources,HOUSE OF FLOWERS,02/06/2016,30,Materials - General,Florists,GPC
Statement 18/05/2016,Corporate Resources,HTTP://ACE.APPRENTICES,18/05/2016,22,Training Expenses - General,"Management, Consulting and Public Relations Servic",GPC
Statement 18/05/2016,Corporate Resources,IAN.ROSE@FIRSTSTOP,25/05/2016,47.37,Materials - General,Commercial Equipment Not Elsewhere Classified,GPC
Statement 18/05/2016,Corporate Resources,INDIGO PARK SOLUTI,16/06/2016,7.7,Subsistence - General,Automobile Parking Lots and Garages,GPC
Statement 18/05/2016,Corporate Resources,INFECTION PREVENTI,07/06/2016,55,Training Expenses - General,Charitable and Social Service Organizations,GPC
Statement 18/05/2016,Corporate Resources,IPF,01/06/2016,1020,Training Expenses - General,"Accounting, Auditing, and Bookkeeping Services",GPC
Statement 18/05/2016,Corporate Resources,ITSU 062 EUSTON PIAZZA,23/05/2016,7.78,Subsistence - General,"Eating Places, Restaurants",GPC
Statement 18/05/2016,Corporate Resources,LE FEVRES STORES,20/05/2016,6.33,Other Expenditure - General,"Grocery Stores, Supermarkets",GPC
Statement 18/05/2016,Corporate Resources,LEICESTERSHIRE C COUNC,27/05/2016,10,Other Expenditure - General,Government Services-Not Elsewhere Classified,GPC
Statement 18/05/2016,Corporate Resources,LEICESTERSHIRE C COUNC,01/06/2016,10,Other Expenditure - General,Government Services-Not Elsewhere Classified,GPC
Statement 18/05/2016,Corporate Resources,LEICESTERSHIRE C COUNC,06/06/2016,10,Other Expenditure - General,Government Services-Not Elsewhere Classified,GPC
Statement 18/05/2016,Corporate Resources,LEICESTERSHIRE C COUNC,06/06/2016,10,Other Expenditure - General,Government Services-Not Elsewhere Classified,GPC
Statement 18/05/2016,Corporate Resources,LEICESTERSHIRE C COUNC,15/06/2016,-10,Other Expenditure - General,Government Services-Not Elsewhere Classified,GPC
Statement 18/05/2016,Corporate Resources,LEICESTERSHIRE C COUNC,15/06/2016,-10,Other Expenditure - General,Government Services-Not Elsewhere Classified,GPC
Statement 18/05/2016,Corporate Resources,LEICESTERSHIRE C COUNC,15/06/2016,-10,Other Expenditure - General,Government Services-Not Elsewhere Classified,GPC
Statement 18/05/2016,Corporate Resources,LEISUREJOBS.COM,01/06/2016,180,Publicity/Marketing - Information Provision,Advertising Services,GPC
Statement 18/05/2016,Corporate Resources,LINKEDIN-275 1899354,18/05/2016,227.94,Other Expenditure - General,Continuity/Subscription Merchants,GPC
Statement 18/05/2016,Corporate Resources,LINKEDIN-275 5954024,20/05/2016,227.94,Other Expenditure - General,Continuity/Subscription Merchants,GPC
Statement 18/05/2016,Corporate Resources,LINKEDIN-2755941104,20/05/2016,227.94,Other Expenditure - General,Continuity/Subscription Merchants,GPC
Statement 18/05/2016,Corporate Resources,LINKEDIN-2755949274,20/05/2016,227.94,Other Expenditure - General,Continuity/Subscription Merchants,GPC
Statement 18/05/2016,Corporate Resources,LINKEDIN-2764750824,25/05/2016,227.94,Other Expenditure - General,Continuity/Subscription Merchants,GPC
Statement 18/05/2016,Corporate Resources,LINKEDIN-2780917654,03/06/2016,227.94,Other Expenditure - General,Continuity/Subscription Merchants,GPC
Statement 18/05/2016,Corporate Resources,LINKEDIN-279 3609414,10/06/2016,227.94,Other Expenditure - General,Continuity/Subscription Merchants,GPC
Statement 18/05/2016,Corporate Resources,LINKEDIN-2793642544,10/06/2016,227.94,Other Expenditure - General,Continuity/Subscription Merchants,GPC
Statement 18/05/2016,Corporate Resources,LINKEDIN-280 4212204,16/06/2016,227.94,Other Expenditure - General,Continuity/Subscription Merchants,GPC
Statement 18/05/2016,Corporate Resources,LINKEDIN-2804317364,16/06/2016,227.94,Other Expenditure - General,Continuity/Subscription Merchants,GPC
Statement 18/05/2016,Corporate Resources,LONGRANGE SYSTEMS UK L,16/06/2016,263.7,Materials - General,"RADIO, TELEVISION, AND STEREO STORES (ELECTRONIC STORES)",GPC
Statement 18/05/2016,Corporate Resources,LONGRANGE SYSTEMS UK L,16/06/2016,263.7,Materials - General,"RADIO, TELEVISION, AND STEREO STORES (ELECTRONIC STORES)",GPC
Statement 18/05/2016,Corporate Resources,LUL TICKET MACHINE,20/05/2016,20,Public Transport -  Staff - General,Passenger Railways,GPC
Statement 18/05/2016,Corporate Resources,LUL TICKET MACHINE,24/05/2016,10,Public Transport -  Staff - General,Passenger Railways,GPC
Statement 18/05/2016,Corporate Resources,M&S SIMPLY FOOD - SSP,20/05/2016,5.85,Subsistence - General,"Miscellaneous Food Stores-Convenience Stores, Mark",GPC
Statement 18/05/2016,Corporate Resources,M6 TOLL,17/05/2016,5.5,Public Transport -  Staff - General,"Bridge and Road Fees, Tolls",GPC
Statement 18/05/2016,Corporate Resources,M6 TOLL,17/05/2016,5.5,Public Transport -  Staff - General,"Bridge and Road Fees, Tolls",GPC
Statement 18/05/2016,Corporate Resources,MAKRO SELF SERVICE LEICES,30/05/2016,79.15,Materials - General,Wholesale Clubs,GPC
Statement 18/05/2016,Corporate Resources,MAKRO SELF SERVICE LEICES,14/06/2016,3.19,Training Expenses - General,Wholesale Clubs,GPC
Statement 18/05/2016,Corporate Resources,MB SIGN DESIGN,01/06/2016,95,Protective Clothing & Uniforms - General,Miscellaneous and Specialty Retail Stores,GPC
Statement 18/05/2016,Corporate Resources,METROLINK TVM,17/05/2016,3.6,Public Transport -  Staff - General,"Bus Lines, Charters, Tour Buses",GPC
Statement 18/05/2016,Corporate Resources,METROLINK TVM,19/05/2016,5.7,Public Transport -  Staff - General,"Bus Lines, Charters, Tour Buses",GPC
Statement 18/05/2016,Corporate Resources,METROLINK TVM,02/06/2016,5.7,Public Transport -  Staff - General,"Bus Lines, Charters, Tour Buses",GPC
Statement 18/05/2016,Corporate Resources,METROLINK TVM,07/06/2016,3.6,Public Transport -  Staff - General,"Bus Lines, Charters, Tour Buses",GPC
Statement 18/05/2016,Corporate Resources,METROLINK TVM,08/06/2016,3.6,Public Transport -  Staff - General,"Bus Lines, Charters, Tour Buses",GPC
Statement 18/05/2016,Corporate Resources,METROLINK TVM,09/06/2016,3.1,Public Transport -  Staff - General,"Bus Lines, Charters, Tour Buses",GPC
Statement 18/05/2016,Corporate Resources,METROLINK TVM,13/06/2016,5.7,Public Transport -  Staff - General,"Bus Lines, Charters, Tour Buses",GPC
Statement 18/05/2016,Corporate Resources,METROLINK TVM,14/06/2016,5.7,Public Transport -  Staff - General,"Bus Lines, Charters, Tour Buses",GPC
Statement 18/05/2016,Corporate Resources,METROLINK TVM,15/06/2016,4,Public Transport -  Staff - General,"Bus Lines, Charters, Tour Buses",GPC
Statement 18/05/2016,Corporate Resources,METROLINK TVM,16/06/2016,6.2,Public Transport -  Staff - General,"Bus Lines, Charters, Tour Buses",GPC
Statement 18/05/2016,Corporate Resources,METROLINK TVM,16/06/2016,5.7,Public Transport -  Staff - General,"Bus Lines, Charters, Tour Buses",GPC
Statement 18/05/2016,Corporate Resources,MINDFULNESSCIC.CO.,20/05/2016,225,Training Expenses - General,Schools and Educational Services-Not Elsewhere Cla,GPC
Statement 18/05/2016,Corporate Resources,MINDFULNESSCIC.CO.,20/05/2016,225,Training Expenses - General,Schools and Educational Services-Not Elsewhere Cla,GPC
Statement 18/05/2016,Corporate Resources,MINDFULNESSCIC.CO.,15/06/2016,195,Training Expenses - General,Schools and Educational Services-Not Elsewhere Cla,GPC
Statement 18/05/2016,Corporate Resources,MINERAL PRODUCTS ASSOC,02/06/2016,150,Training Expenses - General,Professional Services-Not Elsewhere Classified,GPC
Statement 18/05/2016,Corporate Resources,MURIELS KITCHEN,19/05/2016,15,Subsistence - General,"Eating Places, Restaurants",GPC
Statement 18/05/2016,Corporate Resources,MY HAPPY PLACE LTD,25/05/2016,34.56,Subsistence - General,"Eating Places, Restaurants",GPC
Statement 18/05/2016,Corporate Resources,NANDOS LIVERPOOL,24/05/2016,14.75,Subsistence - General,"Eating Places, Restaurants",GPC
Statement 18/05/2016,Corporate Resources,NATURAL WORLD PET STOR,17/05/2016,33.98,Other Services - General,Pet Shops-Pet Food and Supplies,GPC
Statement 18/05/2016,Corporate Resources,NCP LIMITED,23/05/2016,6,Public Transport -  Staff - General,Automobile Parking Lots and Garages,GPC
Statement 18/05/2016,Corporate Resources,NCP LTD,17/05/2016,10.5,Public Transport -  Staff - General,Automobile Parking Lots and Garages,GPC
Statement 18/05/2016,Corporate Resources,NCS VUE CITB HS&E REV,18/05/2016,11.17,Training Expenses - General,Schools and Educational Services-Not Elsewhere Cla,GPC
Statement 18/05/2016,Corporate Resources,NORTHERN RAIL LTD,27/05/2016,3.5,Public Transport -  Staff - General,Passenger Railways,GPC
Statement 18/05/2016,Corporate Resources,OPP LTD STERLING VT,14/06/2016,49,Training Expenses - General,Business Services-Not Elsewhere Classified,GPC
Statement 18/05/2016,Corporate Resources,OYSTER AUTOTOPUP,22/05/2016,20,Public Transport -  Staff - General,Passenger Railways,GPC
Statement 18/05/2016,Corporate Resources,OYSTER RENEW WEB,13/06/2016,50,Public Transport -  Staff - General,Passenger Railways,GPC
Statement 18/05/2016,Corporate Resources,P & R BUILDING SUPPLIE,17/05/2016,40.47,Materials - General,"Building Materials, Lumber Stores",GPC
Statement 18/05/2016,Corporate Resources,P & R BUILDING SUPPLIE,18/05/2016,56.75,Other Services - General,"Building Materials, Lumber Stores",GPC
Statement 18/05/2016,Corporate Resources,P & R BUILDING SUPPLIE,24/05/2016,44.8,Other Services - General,"Building Materials, Lumber Stores",GPC
Statement 18/05/2016,Corporate Resources,PADDYS MARTEN INN,07/06/2016,36,Subsistence - General,"Eating Places, Restaurants",GPC
Statement 18/05/2016,Corporate Resources,PADDYS MARTEN INN,07/06/2016,18,Subsistence - General,"Eating Places, Restaurants",GPC
Statement 18/05/2016,Corporate Resources,PAYPAL  NICK,20/05/2016,62.56,IT Equipment - Software,"RADIO, TELEVISION, AND STEREO STORES (ELECTRONIC STORES)",GPC
Statement 18/05/2016,Corporate Resources,PAYPAL  VIVA ACCESS,07/06/2016,255,Training Expenses - General,Professional Services-Not Elsewhere Classified,GPC
Statement 18/05/2016,Corporate Resources,PEAK DISTRICT NPA,17/05/2016,20,Subsistence - General,"Lodging-Hotels, Motels, Resorts",GPC
Statement 18/05/2016,Corporate Resources,POUNDSTRETCHER 292,17/05/2016,8.41,Other Services - General,"Drapery, Window Coverings, and Upholstery Stores",GPC
Statement 18/05/2016,Corporate Resources,POUNDSTRETCHER 292,23/05/2016,13.47,Other Services - General,"Drapery, Window Coverings, and Upholstery Stores",GPC
Statement 18/05/2016,Corporate Resources,POUNDSTRETCHER 292,28/05/2016,8.77,Other Services - General,"Drapery, Window Coverings, and Upholstery Stores",GPC
Statement 18/05/2016,Corporate Resources,POUNDSTRETCHER 292,14/06/2016,9,Other Services - General,"Drapery, Window Coverings, and Upholstery Stores",GPC
Statement 18/05/2016,Corporate Resources,PREMIER INN 44536195,27/05/2016,538.27,Training Expenses - General,PREMIER TRAVEL,GPC
Statement 18/05/2016,Corporate Resources,PREMIER INN 44536195,27/05/2016,154.98,Training Expenses - General,PREMIER TRAVEL,GPC
Statement 18/05/2016,Corporate Resources,PREMIER INN44521260,25/05/2016,61,Subsistence - General,PREMIER TRAVEL,GPC
Statement 18/05/2016,Corporate Resources,PREMIER INN44521260,25/05/2016,60,Subsistence - General,PREMIER TRAVEL,GPC
Statement 18/05/2016,Corporate Resources,PREMIER INN44521260,25/05/2016,47,Subsistence - General,PREMIER TRAVEL,GPC
Statement 18/05/2016,Corporate Resources,PREMIER INN44521260,25/05/2016,47,Subsistence - General,PREMIER TRAVEL,GPC
Statement 18/05/2016,Corporate Resources,PREMIER INN44521260,05/06/2016,60,Subsistence - General,PREMIER TRAVEL,GPC
Statement 18/05/2016,Corporate Resources,PREMIER INN44521260,05/06/2016,66,Subsistence - General,PREMIER TRAVEL,GPC
Statement 18/05/2016,Corporate Resources,PREMIER INN44521260,05/06/2016,47,Subsistence - General,PREMIER TRAVEL,GPC
Statement 18/05/2016,Corporate Resources,PREMIER INN44521260,07/06/2016,-61,Subsistence - General,PREMIER TRAVEL,GPC
Statement 18/05/2016,Corporate Resources,PRET A MANGER,09/06/2016,2.25,Subsistence - General,"Eating Places, Restaurants",GPC
Statement 18/05/2016,Corporate Resources,Q PARK PIAZZA,31/05/2016,12,Subsistence - General,Automobile Parking Lots and Garages,GPC
Statement 18/05/2016,Corporate Resources,RAIL GOURMET UK,18/05/2016,2.9,Subsistence - General,"Eating Places, Restaurants",GPC
Statement 18/05/2016,Corporate Resources,RAIL GOURMET UK,09/06/2016,2.9,Subsistence - General,"Eating Places, Restaurants",GPC
Statement 18/05/2016,Corporate Resources,RITAZZA 2,15/06/2016,2.16,Subsistence - General,Fast-Food Restaurants (Quick Payment Service Pilot,GPC
Statement 18/05/2016,Corporate Resources,RLSS UK LTD,03/06/2016,118.8,Other Services - General,Charitable and Social Service Organizations,GPC
Statement 18/05/2016,Corporate Resources,RYMAN,17/05/2016,8.99,Stationery - General,"Stationery, Office, and School Supply Stores",GPC
Statement 18/05/2016,Corporate Resources,RYMAN,30/05/2016,38.97,Stationery - General,"Stationery, Office, and School Supply Stores",GPC
Statement 18/05/2016,Corporate Resources,RYMAN,16/06/2016,8.99,Stationery - General,"Stationery, Office, and School Supply Stores",GPC
Statement 18/05/2016,Corporate Resources,SAINSBURY'S S/MKT,10/06/2016,39.4,Materials - General,"Grocery Stores, Supermarkets",GPC
Statement 18/05/2016,Corporate Resources,SAINSBURY'S S/MKT,17/05/2016,49.23,Subsistence - General,"Grocery Stores, Supermarkets",GPC
Statement 18/05/2016,Corporate Resources,SAND'S OF GLENFIELDS,16/05/2016,9.15,Subsistence - General,"Eating Places, Restaurants",GPC
Statement 18/05/2016,Corporate Resources,SCREWFIX,17/05/2016,4.16,Operational Equipment - General,"Building Materials, Lumber Stores",GPC
Statement 18/05/2016,Corporate Resources,SCREWFIX,08/06/2016,22,Other Expenditure - General,"Building Materials, Lumber Stores",GPC
Statement 18/05/2016,Corporate Resources,SCREWFIX,14/06/2016,19.31,Other Expenditure - General,"Building Materials, Lumber Stores",GPC
Statement 18/05/2016,Corporate Resources,SCREWFIX,26/05/2016,4.15,Other Services - General,"Building Materials, Lumber Stores",GPC
Statement 18/05/2016,Corporate Resources,SCREWFIX,26/05/2016,-1,Other Services - General,"Building Materials, Lumber Stores",GPC
Statement 18/05/2016,Corporate Resources,SCREWFIX DIRECT LT,14/06/2016,87.13,Other Services - General,"Building Materials, Lumber Stores",GPC
Statement 18/05/2016,Corporate Resources,SELFSERVE TICKET,18/05/2016,20,Public Transport -  Staff - General,Passenger Railways,GPC
Statement 18/05/2016,Corporate Resources,Shell Ashby,28/05/2016,5,R&M of Vehicles-Non Contract - General,Service Stations (with or without Ancillary Servic,GPC
Statement 18/05/2016,Corporate Resources,SILVERSMITHS RESTAURAN,01/06/2016,45,Subsistence - General,"Eating Places, Restaurants",GPC
Statement 18/05/2016,Corporate Resources,SIMES /FASTENERS/,17/05/2016,20.91,Other Services - General,Industrial Supplies Not Elsewhere Classified,GPC
Statement 18/05/2016,Corporate Resources,SLB SUPPLIES LTD,27/05/2016,7,Other Services - General,Pet Shops-Pet Food and Supplies,GPC
Statement 18/05/2016,Corporate Resources,SP  LDC PAGERS DIRECT,31/05/2016,9.41,Operational Equipment - Rental,Telecommunication Service Including Local and Long,GPC
Statement 18/05/2016,Corporate Resources,ST PANCRAS INTL,09/06/2016,2.8,Public Transport -  Staff - General,"Eating Places, Restaurants",GPC
Statement 18/05/2016,Corporate Resources,STATIONERY OFFICE BOOK,03/06/2016,89.75,Training Expenses - General,Book Stores,GPC
Statement 18/05/2016,Corporate Resources,STAUNTON HAROLD NU,14/06/2016,40.98,Other Services - General,"Lawn and Garden Supply Stores, Nurseries",GPC
Statement 18/05/2016,Corporate Resources,SUNNYSIDE GARDEN CENTRE,21/05/2016,37.46,Other Services - General,"Florists Supplies, Nursery Stock, and Flowers",GPC
Statement 18/05/2016,Corporate Resources,SUNNYSIDE GARDEN CENTRE,07/06/2016,25.96,Other Services - General,"Florists Supplies, Nursery Stock, and Flowers",GPC
Statement 18/05/2016,Corporate Resources,SURVEYMONKEY.COM,19/05/2016,249.17,IT Equipment - Licences,Computer Network/Information Services,GPC
Statement 18/05/2016,Corporate Resources,SURVEYMONKEY.COM,08/06/2016,26,Other Expenditure - General,Computer Network/Information Services,GPC
Statement 18/05/2016,Corporate Resources,TESCO STORES 2044,29/05/2016,8.5,Other Expenditure - General,"Grocery Stores, Supermarkets",GPC
Statement 18/05/2016,Corporate Resources,TESCO STORES 2849,11/06/2016,23.45,Materials - General,"Grocery Stores, Supermarkets",GPC
Statement 18/05/2016,Corporate Resources,TESCO STORES 6156,17/05/2016,7.05,Subsistence - General,"Grocery Stores, Supermarkets",GPC
Statement 18/05/2016,Corporate Resources,TESCO-STORES 2846,06/06/2016,3,Materials - General,"Grocery Stores, Supermarkets",GPC
Statement 18/05/2016,Corporate Resources,TFL CC/LEZ CHARGE,15/06/2016,11.5,Other Expenditure - General,"Bridge and Road Fees, Tolls",GPC
Statement 18/05/2016,Corporate Resources,THE INSTITUTION OF,17/05/2016,124.5,Training Expenses - General,Membership Organizations-Not Elsewhere Classified,GPC
Statement 18/05/2016,Corporate Resources,THE INSTITUTION OF,17/05/2016,124.5,Training Expenses - General,Membership Organizations-Not Elsewhere Classified,GPC
Statement 18/05/2016,Corporate Resources,TICKETOFFICESALE,16/05/2016,6.2,Public Transport -  Staff - General,Passenger Railways,GPC
Statement 18/05/2016,Corporate Resources,TOTAL INDUSTRIAL ENGRAVIN,07/06/2016,61.2,Other Equipment & Materials - General,Durable Goods Not Elsewhere Classified,GPC
Statement 18/05/2016,Corporate Resources,TRADING STANDARDS INST,14/06/2016,22.75,Training Expenses - General,CombinationMail/Phones and Retail Merchants,GPC
Statement 18/05/2016,Corporate Resources,TRADING STANDARDS INST,14/06/2016,19.5,Training Expenses - General,CombinationMail/Phones and Retail Merchants,GPC
Statement 18/05/2016,Corporate Resources,TRADING STANDARDS INST,14/06/2016,22.75,Training Expenses - General,CombinationMail/Phones and Retail Merchants,GPC
Statement 18/05/2016,Corporate Resources,TRAINLINE,09/06/2016,38,Casual/Essential - General,Passenger Railways,GPC
Statement 18/05/2016,Corporate Resources,TRAINLINE,25/05/2016,123.22,Public Transport -  Staff - General,Passenger Railways,GPC
Statement 18/05/2016,Corporate Resources,TRAINLINE,13/06/2016,56.51,Public Transport -  Staff - General,Passenger Railways,GPC
Statement 18/05/2016,Corporate Resources,TRAINLINE,13/06/2016,63.24,Public Transport -  Staff - General,Passenger Railways,GPC
Statement 18/05/2016,Corporate Resources,TRAVEL REPUBLIC LTD,09/06/2016,171.34,Training Expenses - General,Travel Agencies,GPC
Statement 18/05/2016,Corporate Resources,TRAVELODGE WEBSITE,08/06/2016,45.38,Training Expenses - General,Travelodge,GPC
Statement 18/05/2016,Corporate Resources,TSGN,24/05/2016,144,Public Transport -  Staff - General,Passenger Railways,GPC
Statement 18/05/2016,Corporate Resources,TSGN - ST PANCRAS INTE,18/05/2016,69.5,Public Transport -  Staff - General,Passenger Railways,GPC
Statement 18/05/2016,Corporate Resources,UNIVERSITY OF LEICESTE,10/06/2016,275,Training Expenses - General,"Colleges, Universities, Professional Schools, and",GPC
Statement 18/05/2016,Corporate Resources,UPT-EAST MIDLANDS TRN-LB,25/05/2016,11.5,Public Transport -  Staff - General,Professional Services-Not Elsewhere Classified,GPC
Statement 18/05/2016,Corporate Resources,UPT-EAST MIDLANDS TRN-LB,27/05/2016,11.5,Public Transport -  Staff - General,Professional Services-Not Elsewhere Classified,GPC
Statement 18/05/2016,Corporate Resources,UPT-EAST MIDLANDS TRN-LB,13/06/2016,11.5,Schools Agency staff - Teaching Staff,Professional Services-Not Elsewhere Classified,GPC
Statement 18/05/2016,Corporate Resources,VUE NCS CITB HS&E TEST,01/06/2016,19.5,Training Expenses - General,Schools and Educational Services-Not Elsewhere Cla,GPC
Statement 18/05/2016,Corporate Resources,WAITROSE 695,25/05/2016,44.28,Subsistence - General,"Grocery Stores, Supermarkets",GPC
Statement 18/05/2016,Corporate Resources,WEST COAST TRAINS,19/05/2016,8.5,Casual/Essential - General,Automobile Parking Lots and Garages,GPC
Statement 18/05/2016,Corporate Resources,WEST COAST TRAINS,08/06/2016,8.5,Casual/Essential - General,Automobile Parking Lots and Garages,GPC
Statement 18/05/2016,Corporate Resources,WH SMITH,07/06/2016,4.48,Stationery - General,News Dealers and Newsstands,GPC
Statement 18/05/2016,Corporate Resources,WICKES,17/05/2016,17.46,Other Services - General,"Building Materials, Lumber Stores",GPC
Statement 18/05/2016,Corporate Resources,WICKES,17/05/2016,19.96,Other Services - General,"Building Materials, Lumber Stores",GPC
Statement 18/05/2016,Corporate Resources,WICKES,19/05/2016,32.76,Other Services - General,"Building Materials, Lumber Stores",GPC
Statement 18/05/2016,Corporate Resources,WICKES,14/06/2016,18.31,Other Services - General,"Building Materials, Lumber Stores",GPC
Statement 18/05/2016,Corporate Resources,WILKO RETAIL LIMIT,18/05/2016,49.45,Materials - General,Household Appliance Stores,GPC
Statement 18/05/2016,Corporate Resources,WILKO RETAIL LIMIT,24/05/2016,32.75,Other Services - General,Household Appliance Stores,GPC
Statement 18/05/2016,Corporate Resources,WILKO RETAIL LIMIT,28/05/2016,17.72,Other Services - General,Household Appliance Stores,GPC
Statement 18/05/2016,Corporate Resources,WM MORRISON 054,28/05/2016,12.84,Other Expenditure - General,"Grocery Stores, Supermarkets",GPC
Statement 18/05/2016,Corporate Resources,WM MORRISON 054,01/06/2016,15,Other Expenditure - General,"Grocery Stores, Supermarkets",GPC
Statement 18/05/2016,Corporate Resources,WM MORRISON 054,18/05/2016,8,Other Services - General,"Grocery Stores, Supermarkets",GPC
Statement 18/05/2016,Corporate Resources,WWW OPPASSESSMENT EU COM,01/06/2016,294,Training Expenses - General,Business Services-Not Elsewhere Classified,GPC
Statement 18/05/2016,Corporate Resources,WWW.AMBERHAWK.COM,20/05/2016,125,Other Equipment & Materials - General,Business Services-Not Elsewhere Classified,GPC
Statement 18/05/2016,Corporate Resources,WWW.CIPFA.ORG.UK/PFMCO,23/05/2016,150,Training Expenses - General,Membership Organizations-Not Elsewhere Classified,GPC
Statement 18/05/2016,Corporate Resources,WWW.CIPFA.ORG.UK/PFMCO,23/05/2016,150,Training Expenses - General,Membership Organizations-Not Elsewhere Classified,GPC
Statement 18/05/2016,Corporate Resources,WWW.CIPS.ORG,27/05/2016,195.84,Training Expenses - General,Membership Organizations-Not Elsewhere Classified,GPC
Statement 18/05/2016,Corporate Resources,WWW.MAKEANENTRANCE.COM,10/06/2016,79.21,Materials - General,"Gift, Card, Novelty, and Souvenir Shops",GPC
Statement 18/05/2016,Corporate Resources,WWW.PARAGON.NET.UK RT,16/06/2016,7.19,Other Expenditure - General,Continuity/Subscription Merchants,GPC
Statement 18/05/2016,Corporate Resources,WWW.PPMA.ORG.UK,09/06/2016,354,Training Expenses - General,Business Services-Not Elsewhere Classified,GPC
Statement 18/05/2016,Corporate Resources,WWW.TREES.ORG.UK,06/06/2016,80,Training Expenses - General,Charitable and Social Service Organizations,GPC
Statement 18/05/2016,Corporate Resources,XC TRAINS LTD,17/05/2016,2.6,Public Transport -  Staff - General,Passenger Railways,GPC
Statement 18/05/2016,Corporate Resources,YHA NATIONAL FORES,18/05/2016,14.99,Other Expenditure - General,"Lodging-Hotels, Motels, Resorts",GPC
Statement 18/05/2016,Corporate Resources,YO! SUSHI,31/05/2016,12.95,Subsistence - General,"Eating Places, Restaurants",GPC
Statement 18/05/2016,Corporate Resources,ZIZZI KINGSTON,17/05/2016,31.65,Subsistence - General,"Eating Places, Restaurants",GPC
Statement 18/05/2016,E&T,Amazon Prime,04/06/2016,79,Other Expenditure - General,Continuity/Subscription Merchants,GPC
Statement 18/05/2016,E&T,Amazon UK Marketplace,21/05/2016,25.99,Materials - General,Miscellaneous and Specialty Retail Stores,GPC
Statement 18/05/2016,E&T,Amazon UK Marketplace,25/05/2016,6.64,Other Equipment & Materials - General,Miscellaneous and Specialty Retail Stores,GPC
Statement 18/05/2016,E&T,Amazon UK Marketplace,31/05/2016,18.4,Other Equipment & Materials - General,Book Stores,GPC
Statement 18/05/2016,E&T,Amazon UK Marketplace,16/06/2016,29.77,Other Equipment & Materials - General,Book Stores,GPC
Statement 18/05/2016,E&T,Amazon UK Marketplace,16/06/2016,3.3,Other Equipment & Materials - General,Miscellaneous and Specialty Retail Stores,GPC
Statement 18/05/2016,E&T,Amazon UK Marketplace,07/06/2016,13.7,Other Services - General,Book Stores,GPC
Statement 18/05/2016,E&T,Amazon UK Marketplace,07/06/2016,18.25,Other Services - General,Miscellaneous and Specialty Retail Stores,GPC
Statement 18/05/2016,E&T,Amazon UK Retail,26/05/2016,120.25,Other Equipment & Materials - General,Direct Marketers - Other,GPC
Statement 18/05/2016,E&T,Amazon UK Retail,16/06/2016,8.11,Other Equipment & Materials - General,Direct Marketers - Other,GPC
Statement 18/05/2016,E&T,AMAZON UK RETAIL AMAZON.C,16/06/2016,32.4,Other Equipment & Materials - General,Miscellaneous and Specialty Retail Stores,GPC
Statement 18/05/2016,E&T,AMAZON UK RETAIL AMAZON.C,16/06/2016,8.11,Other Equipment & Materials - General,Miscellaneous and Specialty Retail Stores,GPC
Statement 18/05/2016,E&T,DVLA VEHICLE TAX,02/06/2016,167.5,Other Expenditure - General,Government Services-Not Elsewhere Classified,GPC
Statement 18/05/2016,E&T,DVLA VEHICLE TAX,14/06/2016,232.5,Other Expenditure - General,Government Services-Not Elsewhere Classified,GPC
Statement 18/05/2016,E&T,EAST MIDLANDS LEICESTER,16/05/2016,7.5,Casual/Essential - General,Automobile Parking Lots and Garages,GPC
Statement 18/05/2016,E&T,EASTMIDLANDSTRAINS,25/05/2016,142.1,Casual/Essential - General,Passenger Railways,GPC
Statement 18/05/2016,E&T,EASTMIDLANDSTRAINS,31/05/2016,142,Casual/Essential - General,Passenger Railways,GPC
Statement 18/05/2016,E&T,EASTMIDLANDSTRAINS,26/05/2016,162.5,Public Transport -  Staff - General,Passenger Railways,GPC
Statement 18/05/2016,E&T,EASTMIDLANDSTRAINS,27/05/2016,252,Public Transport -  Staff - General,Passenger Railways,GPC
Statement 18/05/2016,E&T,EASTMIDLANDSTRAINS,07/06/2016,181.5,Public Transport -  Staff - General,Passenger Railways,GPC
Statement 18/05/2016,E&T,EASTMIDLANDSTRAINS,13/06/2016,39,Public Transport -  Staff - General,Passenger Railways,GPC
Statement 18/05/2016,E&T,GLASGOW ANGLING LTD,24/05/2016,133.3,Other Equipment & Materials - General,Sporting Goods Stores,GPC
Statement 18/05/2016,E&T,HALFORDS ON LINE,24/05/2016,19.14,Cleaning Materials - General,Bicycle Shops-Sales and Service,GPC
Statement 18/05/2016,E&T,MILL ON THE SOAR,18/05/2016,104.7,Subsistence - General,"Drinking Places (Alcoholic Beverages)-Bars, Tavern",GPC
Statement 18/05/2016,E&T,MILL ON THE SOAR,02/06/2016,119.7,Subsistence - General,"Drinking Places (Alcoholic Beverages)-Bars, Tavern",GPC
Statement 18/05/2016,E&T,MILL ON THE SOAR,15/06/2016,90.05,Subsistence - General,"Drinking Places (Alcoholic Beverages)-Bars, Tavern",GPC
Statement 18/05/2016,E&T,UPT - EMT NOTTINGHAM RAI,02/06/2016,7,Schools Agency staff - Teaching Staff,Professional Services-Not Elsewhere Classified,GPC
Statement 18/05/2016,E&T,WWW.NECCONTRACT.COM,23/05/2016,438,Subscriptions - General,Miscellaneous Publishing and  Printing,GPC
Statement 18/05/2016,E&T,WWW.UK.ALCONTROL.COM,20/05/2016,261.39,Other Equipment & Materials - General,Business Services-Not Elsewhere Classified,GPC
Statement 18/05/2016,Leicestershire Highways,Amazon UK Marketplace,26/05/2016,26.05,Books - General,Book Stores,GPC
Statement 18/05/2016,Leicestershire Highways,Amazon UK Marketplace,26/05/2016,12,Materials - General,Miscellaneous and Specialty Retail Stores,GPC
Statement 18/05/2016,Leicestershire Highways,MITCHELL STORAGE&DISTR,24/05/2016,87.76,Private Contractors - General,"Courier Services-Air and Ground, and Freight Forw",GPC
Statement 18/05/2016,Leicestershire Highways,PREMIER INN44521690,16/05/2016,223.98,Subsistence - General,PREMIER TRAVEL,GPC
Statement 18/05/2016,Public Health,Amazon UK Marketplace,24/05/2016,1.43,IT Equipment - Purchase - Hardware,Miscellaneous and Specialty Retail Stores,GPC
Statement 18/05/2016,Public Health,Amazon UK Marketplace,20/05/2016,3.68,Other Equipment & Materials - General,Miscellaneous and Specialty Retail Stores,GPC
Statement 18/05/2016,Public Health,Amazon UK Marketplace,27/05/2016,32.5,Other Equipment & Materials - General,Miscellaneous and Specialty Retail Stores,GPC
Statement 18/05/2016,Public Health,Amazon UK Marketplace,01/06/2016,8.15,Other Equipment & Materials - General,Miscellaneous and Specialty Retail Stores,GPC
Statement 18/05/2016,Public Health,Amazon UK Marketplace,28/05/2016,27.32,Stationery - General,Miscellaneous and Specialty Retail Stores,GPC
Statement 18/05/2016,Public Health,BRITANNIA STUDENT,07/06/2016,57.5,Training Expenses - General,Real Estate Agent and Managers - Rentals,GPC
Statement 18/05/2016,Public Health,FACEBOOK YYWDZ8JW32,31/05/2016,151.51,Advertising - General,Advertising Services,GPC
Statement 18/05/2016,Public Health,IMAGO,19/05/2016,116,Consultants & Specialists - General,"Lodging-Hotels, Motels, Resorts",GPC
Statement 18/05/2016,Public Health,INSIDE HOTEL DCC,08/06/2016,100,Conference - General,"Lodging-Hotels, Motels, Resorts",GPC
Statement 18/05/2016,Public Health,LOVE2SHOP.CO.UK,09/06/2016,20.99,Other Equipment & Materials - General,"Civic, Social, and Fraternal Associations",GPC
Statement 18/05/2016,Public Health,NCP LIMITED,16/06/2016,12,Subsistence - General,Automobile Parking Lots and Garages,GPC
Statement 18/05/2016,Public Health,TRAINLINE,16/06/2016,17.75,Casual/Essential - General,Passenger Railways,GPC
Statement 18/05/2016,Public Health,TRAINLINE,24/05/2016,112.3,Public Transport -  Staff - General,Passenger Railways,GPC
Statement 18/05/2016,Public Health,TRAINLINE,09/06/2016,42.53,Public Transport -  Staff - General,Passenger Railways,GPC
Statement 18/05/2016,Public Health,TRAINLINE,09/06/2016,-30.2,Public Transport -  Staff - General,Passenger Railways,GPC
Statement 18/05/2016,Public Health,TRAINLINE,16/06/2016,17.75,Public Transport -  Staff - General,Passenger Railways,GPC
Statement 18/05/2016,Public Health,TWITTER ADVERTISING,03/06/2016,0.1,Advertising - General,Advertising Services,GPC
Statement 18/05/2016,Public Health,UKOFFICEDIRECT.CO.,03/06/2016,27.12,Stationery - General,"Stationery, Office, and School Supply Stores",GPC
Statement 18/05/2016,Public Health,VICTORIA STATION HOTEL,07/06/2016,84.17,Training Expenses - General,"Lodging-Hotels, Motels, Resorts",GPC
Statement 18/05/2016,Public Health,WWW.COVENTRY.GOV.UK,01/06/2016,35,Conference - General,RECREATION SERVICES--NOT ELSEWHERE CLASSIFIED,GPC
Statement 18/05/2016,Public Health,WWW.NTU.AC.UK,01/06/2016,25,Conference - General,"Colleges, Universities, Professional Schools, and",GPC
Statement 18/05/2016,Public Health,WWW.OUTDOORLIVINGUK,07/06/2016,492.6,Other Equipment & Materials - General,"Lawn and Garden Supply Stores, Nurseries",GPC
Statement 18/05/2016,Public Health,YOUTH SPORT DIRECT LTD,27/05/2016,285.3,Conference - General,Sporting Goods Stores,GPC
"**Amounts stated are net of VAT, except where VAT has not been recovered.",,,,,,,
